{"text_format":"1","workbook":"xlsx","n_sheets":3,"sheets":["Formulario 4- Planta","Formulario 4A - Nómina","DESPLEGABLES"],"not_rendered":{"charts":0,"images":0,"macros":1,"external_links":1,"defined_names":27,"comments":2,"pivot_tables":0},"unopened":[],"bounds":{"document_bytes":16777216,"sheet_cells":100000,"rows_first":2000,"rows_last":500,"rows_between":2000,"halvings":0,"cell_chars":16384,"cell_head_chars":4096},"cells_cut":0,"cells_raw":0,"read":"whole","date_system":"1900"}

{"sheet":"Formulario 4- Planta","index":0,"n_rows":132,"n_cols":47,"rows_kept":132,"cut":false,"hidden":false,"merged":[[129,2,130,5],[131,2,132,5],[129,6,130,8],[131,6,132,8],[129,9,130,11],[129,12,130,14],[131,9,132,11],[131,12,132,14],[105,2,105,6],[127,9,128,11],[125,9,126,11],[123,9,124,11],[121,9,122,11],[125,2,126,5],[127,2,128,5],[107,6,108,8],[115,2,116,5],[117,2,118,5],[119,2,120,5],[121,2,122,5],[123,2,124,5],[106,2,108,5],[109,2,110,5],[111,2,112,5],[4,1,4,11],[6,3,6,10],[8,0,11,0],[8,1,11,1],[0,0,0,46],[1,0,1,46],[3,1,3,11],[2,0,2,46],[8,32,8,42],[8,46,11,46],[8,2,11,2],[8,3,8,21],[9,3,9,15],[9,16,9,20],[10,3,10,4],[10,5,11,5],[8,22,8,31],[9,26,9,30],[10,26,11,26],[10,27,11,27],[10,28,11,28],[10,30,11,30],[9,31,11,31],[9,22,9,25],[10,11,11,11],[10,12,11,12],[10,13,11,13],[10,15,11,15],[10,14,11,14],[10,6,11,6],[10,7,11,7],[10,8,11,8],[10,9,11,9],[10,10,11,10],[10,16,11,16],[10,17,11,17],[9,36,11,36],[9,37,11,37],[9,39,11,39],[10,18,11,18],[10,19,11,19],[9,21,11,21],[9,38,11,38],[10,20,11,20],[10,22,11,22],[10,23,11,23],[10,25,11,25],[10,24,11,24],[10,29,11,29],[9,43,11,43],[9,44,11,44],[8,43,8,45],[9,45,11,45],[9,42,11,42],[9,32,11,32],[9,33,11,33],[9,34,11,34],[9,35,11,35],[9,41,11,41],[9,40,11,40],[113,2,114,5],[127,6,128,8],[125,6,126,8],[123,6,124,8],[121,6,122,8],[119,6,120,8],[117,6,118,8],[115,6,116,8],[113,6,114,8],[111,6,112,8],[109,12,110,14],[109,9,110,11],[119,9,120,11],[117,9,118,11],[115,9,116,11],[113,9,114,11],[111,9,112,11],[107,9,108,11],[109,6,110,8],[106,12,108,14],[106,6,106,11],[121,12,122,14],[123,12,124,14],[125,12,126,14],[127,12,128,14],[111,12,112,14],[113,12,114,14],[115,12,116,14],[117,12,118,14],[119,12,120,14]]}
["MINISTERIO DE HACIENDA Y CRÉDITO PÚBLICO "]
["Dirección General del Presupuesto Público Nacional"]
["Formulario 4. Anteproyecto Planta de personal"]
["SECCIÓN"]
["UNIDAD EJECUTORA",{"$f":"IFERROR(VLOOKUP(B4,DESPLEGABLES!A1:B198,2,FALSE),\"\")","v":""}]
[]
[null,null,null,"ANTEPROYECTO PLANTA DE PERSONAL - VIGENCIA",null,null,null,null,null,null,null,2021,null,null,"(diligenciar en pesos)"]
[]
["DENOMINACIÓN DE CARGOS","Grado","No. Cargos","Salario",null,null,null,null,null,null,null,null,null,null,null,null,null,null,null,null,null,null,"Remuneraciones no constitutivas de Factor Salarial",null,null,null,null,null,null,null,null,null,"Contribuciones Inherentes a la Nómina",null,null,null,null,null,null,null,null,null,null,"Prestaciones sociales relacionadas con el empleo",null,null,"Total  \nGastos de personal"]
[null,null,null,"Factores Salariales comunes",null,null,null,null,null,null,null,null,null,null,null,null,"Factores Salariales Especiales",null,null,null,null,"Total","Prestaciones sociales según definición legal",null,null,null,"Otras remuneraciones no constitutivas de Factor Salarial",null,null,null,null,"Total","Pensiones","Salud","Aportes de Cesantías","Cajas de Compensación Familiar","Aportes Generales al Sistema de Riesgos Laborales","Aportes al ICBF","Aportes al SENA","Aportes a la ESAP","Aportes a escuelas industriales e institutos técnicos","Subsidio de vivienda Fuerzas Militares y Policía","Total","Incapacidades (No de pensiones)","Licencias de maternidad y paternidad (No de pensiones)","Total \nTransferencia"]
[null,null,null,"Sueldo básico",null,"Gastos de representación","Prima técnica salarial","Subsidio de alimentación","Auxilio de transporte","Prima de servicio","Bonificación por servicios prestados","Horas extras, dominicales, festivos y recargos","Prima de navidad","Prima de vacaciones","Viáticos de los funcionarios en comisión","Subtotal 1","Factor Salarial Especial 1","Factor Salarial Especial 2","Factor Salarial Especial 3","Factor Salarial Especial 4","Subtotal 2",null,"Sueldo de vacaciones","Indemnización por vacaciones","Bonificación especial de recreación","Subtotal 1","Remuneración 1","Remuneración 2","Remuneración 3","Remuneración 4","Subtotal 2",null,null,null,null,null,null,null,null,null,"Institutos","Institutos","Institutos"]
[null,null,null,"Mes","Anual",null,null,null,null,null,null,null,null,null,null,null,null,null,null,null,null,null,null,null,null,null,null,null,null,null,null,null,null,null,null,null,null,null,null,null,"Técnicos","Técnicos","Técnicos"]
[1,2,3,null,4.0999999999999996,4.2,4.3,4.4000000000000004,4.5,4.5999999999999996,4.7,4.8,4.9000000000000004,4.0999999999999996,4.1100000000000003,4,5.0999999999999996,5.2,5.3,5.4,5,"4+5= 6",7.1,7.2,7.3,7,8.1,8.1999999999999993,8.3000000000000007,8.4,8,"7+8=9",10.1,10.199999999999999,10.3,10.4,10.5,10.6,10.7,10.8,10.9,10.1,10,11.1,11.2,"11.1+11.2","6+9+10=12"]
["EMPLEADOS PÚBLICOS"]
["NIVEL DIRECTIVO",null,{"$f":"SUM(C16:C22)","v":0},{"$f":"SUM(D16:D22)","v":0},{"$f":"SUM(E16:E22)","v":0},{"$f":"SUM(F16:F22)","v":0},{"$f":"SUM(G16:G22)","v":0},0,0,0,0,0,0,0,0,0,0,0,0,0,0,0,0,0,0,0,0,0,0,0,0,0,0,0,{"$f":"SUM(AI16:AI22)","v":0},0,0,{"$f":"SUM(AL16:AL22)","v":0},0,0,0,0,0,0,0,{"$f":"SUM(AT16:AT22)","v":0},{"$f":"SUM(AU16:AU22)","v":0}]
[null,null,null,null,{"$f":"D16*C16*12","v":0},null,null,null,null,null,null,null,null,null,null,{"$f":"SUM(E16:O16)","v":0},null,null,null,null,{"$f":"SUM(Q16:T16)","v":0},{"$f":"P16+U16","v":0},null,null,null,{"$f":"SUM(W16:Y16)","v":0},null,null,null,null,{"$f":"SUM(AA16:AD16)","v":0},{"$f":"Z16+AE16","v":0},null,null,null,null,null,null,null,null,null,null,{"$f":"SUM(AG16:AP16)","v":0},null,null,{"$f":"SUM(AR16:AS16)","v":0},{"$f":"V16+AF16+AQ16","v":0}]
[null,null,null,null,{"$f":"D17*C17*12","v":0},null,null,null,null,null,null,null,null,null,null,{"$f":"SUM(E17:O17)","v":0},null,null,null,null,0,{"$f":"P17+U17","v":0},null,null,null,{"$f":"SUM(W17:Y17)","v":0},null,null,null,null,{"$f":"SUM(AA17:AD17)","v":0},{"$f":"Z17+AE17","v":0},null,null,null,null,null,null,null,null,null,null,0,null,null,{"$f":"SUM(AR17:AS17)","v":0},0]
[null,null,null,null,{"$f":"D18*C18*12","v":0},null,null,null,null,null,null,null,null,null,null,0,null,null,null,null,0,{"$f":"P18+U18","v":0},null,null,null,{"$f":"SUM(W18:Y18)","v":0},null,null,null,null,{"$f":"SUM(AA18:AD18)","v":0},0,null,null,null,null,null,null,null,null,null,null,0,null,null,0,0]
[null,null,null,null,{"$f":"D19*C19*12","v":0},null,null,null,null,null,null,null,null,null,null,0,null,null,null,null,0,0,null,null,null,{"$f":"SUM(W19:Y19)","v":0},null,null,null,null,{"$f":"SUM(AA19:AD19)","v":0},0,null,null,null,null,null,null,null,null,null,null,0,null,null,0,0]
[null,null,null,null,0,null,null,null,null,null,null,null,null,null,null,{"$f":"SUM(E20:O20)","v":0},null,null,null,null,0,0,null,null,null,0,null,null,null,null,{"$f":"SUM(AA20:AD20)","v":0},0,null,null,null,null,null,null,null,null,null,null,0,null,null,0,0]
[null,null,null,null,0,null,null,null,null,null,null,null,null,null,null,0,null,null,null,null,0,0,null,null,null,0,null,null,null,null,0,0,null,null,null,null,null,null,null,null,null,null,0,null,null,0,0]
[null,null,null,null,0,null,null,null,null,null,null,null,null,null,null,{"$f":"SUM(E22:O22)","v":0},null,null,null,null,0,0,null,null,null,0,null,null,null,null,0,0,null,null,null,null,null,null,null,null,null,null,0,null,null,0,0]
["NIVEL ASESOR",null,{"$f":"SUM(C24:C29)","v":0},0,0,0,0,0,0,{"$f":"SUM(J24:J29)","v":0},0,0,0,0,0,0,0,0,0,0,0,0,0,0,0,0,0,0,0,0,0,0,0,0,0,0,0,0,0,0,0,0,0,0,0,0,0]
[null,null,null,null,{"$f":"D24*C24*12","v":0},null,null,null,null,null,null,null,null,null,null,{"$f":"SUM(E24:O24)","v":0},null,null,null,null,{"$f":"SUM(Q24:T24)","v":0},{"$f":"P24+U24","v":0},null,null,null,{"$f":"SUM(W24:Y24)","v":0},null,null,null,null,{"$f":"SUM(AA24:AD24)","v":0},{"$f":"SUM(AA24:AD24)","v":0},null,null,null,null,null,null,null,null,null,null,{"$f":"SUM(AG24:AP24)","v":0},null,null,{"$f":"SUM(AR24:AS24)","v":0},{"$f":"V24+AF24+AQ24","v":0}]
[null,null,null,null,{"$f":"D25*C25*12","v":0},null,null,null,null,null,null,null,null,null,null,{"$f":"SUM(E25:O25)","v":0},null,null,null,null,{"$f":"SUM(Q25:T25)","v":0},{"$f":"P25+U25","v":0},null,null,null,{"$f":"SUM(W25:Y25)","v":0},null,null,null,null,{"$f":"SUM(AA25:AD25)","v":0},{"$f":"SUM(AA25:AD25)","v":0},null,null,null,null,null,null,null,null,null,null,{"$f":"SUM(AG25:AP25)","v":0},null,null,{"$f":"SUM(AR25:AS25)","v":0},{"$f":"V25+AF25+AQ25","v":0}]
[null,null,null,null,0,null,null,null,null,null,null,null,null,null,null,0,null,null,null,null,0,0,null,null,null,{"$f":"SUM(W26:Y26)","v":0},null,null,null,null,0,0,null,null,null,null,null,null,null,null,null,null,0,null,null,{"$f":"SUM(AR26:AS26)","v":0},0]
[null,null,null,null,0,null,null,null,null,null,null,null,null,null,null,0,null,null,null,null,0,0,null,null,null,{"$f":"SUM(W27:Y27)","v":0},null,null,null,null,{"$f":"SUM(AA27:AD27)","v":0},{"$f":"SUM(AA27:AD27)","v":0},null,null,null,null,null,null,null,null,null,null,0,null,null,0,0]
[null,null,null,null,0,null,null,null,null,null,null,null,null,null,null,0,null,null,null,null,0,0,null,null,null,{"$f":"SUM(W28:Y28)","v":0},null,null,null,null,0,0,null,null,null,null,null,null,null,null,null,null,0,null,null,0,0]
[null,null,null,null,0,null,null,null,null,null,null,null,null,null,null,0,null,null,null,null,0,0,null,null,null,0,null,null,null,null,0,0,null,null,null,null,null,null,null,null,null,null,0,null,null,0,0]
["NIVEL EJECUTIVO",null,{"$f":"SUM(C31:C37)","v":0},{"$f":"SUM(D31:D37)","v":0},{"$f":"SUM(E31:E37)","v":0},{"$f":"SUM(F31:F37)","v":0},0,0,{"$f":"SUM(I31:I37)","v":0},0,0,0,0,0,0,{"$f":"SUM(P31:P37)","v":0},{"$f":"SUM(Q31:Q37)","v":0},{"$f":"SUM(R31:R37)","v":0},{"$f":"SUM(S31:S37)","v":0},{"$f":"SUM(T31:T37)","v":0},{"$f":"SUM(U31:U37)","v":0},{"$f":"SUM(V31:V37)","v":0},{"$f":"SUM(W31:W37)","v":0},{"$f":"SUM(X31:X37)","v":0},{"$f":"SUM(Y31:Y37)","v":0},{"$f":"SUM(Z31:Z37)","v":0},{"$f":"SUM(AA31:AA37)","v":0},{"$f":"SUM(AB31:AB37)","v":0},{"$f":"SUM(AC31:AC37)","v":0},{"$f":"SUM(AD31:AD37)","v":0},{"$f":"SUM(AE31:AE37)","v":0},{"$f":"SUM(AF31:AF37)","v":0},{"$f":"SUM(AG31:AG37)","v":0},{"$f":"SUM(AH31:AH37)","v":0},{"$f":"SUM(AI31:AI37)","v":0},{"$f":"SUM(AJ31:AJ37)","v":0},{"$f":"SUM(AK31:AK37)","v":0},{"$f":"SUM(AL31:AL37)","v":0},{"$f":"SUM(AM31:AM37)","v":0},{"$f":"SUM(AN31:AN37)","v":0},{"$f":"SUM(AO31:AO37)","v":0},{"$f":"SUM(AP31:AP37)","v":0},{"$f":"SUM(AQ31:AQ37)","v":0},{"$f":"SUM(AR31:AR37)","v":0},{"$f":"SUM(AS31:AS37)","v":0},{"$f":"SUM(AT31:AT37)","v":0},{"$f":"SUM(AU31:AU37)","v":0}]
[null,null,null,null,{"$f":"D31*C31*12","v":0},null,null,null,null,null,null,null,null,null,null,{"$f":"SUM(E31:O31)","v":0},null,null,null,null,{"$f":"SUM(Q31:T31)","v":0},{"$f":"P31+U31","v":0},null,null,null,{"$f":"SUM(W31:Y31)","v":0},null,null,null,null,{"$f":"SUM(AA31:AD31)","v":0},{"$f":"Z31+AE31","v":0},null,null,null,null,null,null,null,null,null,null,{"$f":"SUM(AG31:AP31)","v":0},null,null,{"$f":"SUM(AR31:AS31)","v":0},{"$f":"V31+AF31+AQ31","v":0}]
[null,null,null,null,{"$f":"D32*C32*12","v":0},null,null,null,null,null,null,null,null,null,null,{"$f":"SUM(E32:O32)","v":0},null,null,null,null,{"$f":"SUM(Q32:T32)","v":0},{"$f":"P32+U32","v":0},null,null,null,{"$f":"SUM(W32:Y32)","v":0},null,null,null,null,{"$f":"SUM(AA32:AD32)","v":0},{"$f":"Z32+AE32","v":0},null,null,null,null,null,null,null,null,null,null,{"$f":"SUM(AG32:AP32)","v":0},null,null,{"$f":"SUM(AR32:AS32)","v":0},{"$f":"V32+AF32+AQ32","v":0}]
[null,null,null,null,0,null,null,null,null,null,null,null,null,null,null,0,null,null,null,null,0,0,null,null,null,0,null,null,null,null,0,0,null,null,null,null,null,null,null,null,null,null,0,null,null,0,0]
[null,null,null,null,0,null,null,null,null,null,null,null,null,null,null,0,null,null,null,null,0,0,null,null,null,0,null,null,null,null,0,0,null,null,null,null,null,null,null,null,null,null,0,null,null,0,0]
[null,null,null,null,0,null,null,null,null,null,null,null,null,null,null,0,null,null,null,null,0,0,null,null,null,0,null,null,null,null,0,0,null,null,null,null,null,null,null,null,null,null,0,null,null,0,0]
[null,null,null,null,0,null,null,null,null,null,null,null,null,null,null,0,null,null,null,null,0,0,null,null,null,0,null,null,null,null,0,0,null,null,null,null,null,null,null,null,null,null,0,null,null,0,0]
[null,null,null,null,0,null,null,null,null,null,null,null,null,null,null,0,null,null,null,null,0,0,null,null,null,0,null,null,null,null,0,0,null,null,null,null,null,null,null,null,null,null,0,null,null,0,0]
["NIVEL PROFESIONAL",null,{"$f":"SUM(C39:C44)","v":0},{"$f":"SUM(D39:D44)","v":0},{"$f":"SUM(E39:E44)","v":0},{"$f":"SUM(F39:F44)","v":0},0,0,0,0,0,0,0,0,0,{"$f":"SUM(P39:P44)","v":0},{"$f":"SUM(Q39:Q44)","v":0},{"$f":"SUM(R39:R44)","v":0},{"$f":"SUM(S39:S44)","v":0},{"$f":"SUM(T39:T44)","v":0},{"$f":"SUM(U39:U44)","v":0},{"$f":"SUM(V39:V44)","v":0},{"$f":"SUM(W39:W44)","v":0},{"$f":"SUM(X39:X44)","v":0},{"$f":"SUM(Y39:Y44)","v":0},{"$f":"SUM(Z39:Z44)","v":0},{"$f":"SUM(AA39:AA44)","v":0},{"$f":"SUM(AB39:AB44)","v":0},{"$f":"SUM(AC39:AC44)","v":0},{"$f":"SUM(AD39:AD44)","v":0},{"$f":"SUM(AE39:AE44)","v":0},{"$f":"SUM(AF39:AF44)","v":0},{"$f":"SUM(AG39:AG44)","v":0},{"$f":"SUM(AH39:AH44)","v":0},{"$f":"SUM(AI39:AI44)","v":0},{"$f":"SUM(AJ39:AJ44)","v":0},{"$f":"SUM(AK39:AK44)","v":0},{"$f":"SUM(AL39:AL44)","v":0},{"$f":"SUM(AM39:AM44)","v":0},{"$f":"SUM(AN39:AN44)","v":0},{"$f":"SUM(AO39:AO44)","v":0},{"$f":"SUM(AP39:AP44)","v":0},{"$f":"SUM(AQ39:AQ44)","v":0},{"$f":"SUM(AR39:AR44)","v":0},{"$f":"SUM(AS39:AS44)","v":0},{"$f":"SUM(AT39:AT44)","v":0},{"$f":"SUM(AU39:AU44)","v":0}]
[null,null,null,null,{"$f":"D39*C39*12","v":0},null,null,null,null,null,null,null,null,null,null,{"$f":"SUM(F39:O39)","v":0},null,null,null,null,{"$f":"SUM(Q39:T39)","v":0},{"$f":"P39+U39","v":0},null,null,null,{"$f":"SUM(W39:Y39)","v":0},null,null,null,null,{"$f":"SUM(AA39:AD39)","v":0},{"$f":"Z39+AE39","v":0},null,null,null,null,null,null,null,null,null,null,{"$f":"SUM(AG39:AP39)","v":0},null,null,{"$f":"SUM(AR39:AS39)","v":0},{"$f":"V39+AF39+AQ39","v":0}]
[null,null,null,null,{"$f":"D40*C40*12","v":0},null,null,null,null,null,null,null,null,null,null,{"$f":"SUM(F40:O40)","v":0},null,null,null,null,{"$f":"SUM(Q40:T40)","v":0},{"$f":"P40+U40","v":0},null,null,null,{"$f":"SUM(W40:Y40)","v":0},null,null,null,null,{"$f":"SUM(AA40:AD40)","v":0},{"$f":"Z40+AE40","v":0},null,null,null,null,null,null,null,null,null,null,{"$f":"SUM(AG40:AP40)","v":0},null,null,{"$f":"SUM(AR40:AS40)","v":0},{"$f":"V40+AF40+AQ40","v":0}]
[null,null,null,null,0,null,null,null,null,null,null,null,null,null,null,{"$f":"SUM(F41:O41)","v":0},null,null,null,null,0,0,null,null,null,0,null,null,null,null,0,0,null,null,null,null,null,null,null,null,null,null,0,null,null,0,0]
[null,null,null,null,0,null,null,null,null,null,null,null,null,null,null,0,null,null,null,null,0,0,null,null,null,0,null,null,null,null,0,0,null,null,null,null,null,null,null,null,null,null,0,null,null,0,0]
[null,null,null,null,0,null,null,null,null,null,null,null,null,null,null,0,null,null,null,null,0,0,null,null,null,0,null,null,null,null,0,0,null,null,null,null,null,null,null,null,null,null,0,null,null,0,0]
[null,null,null,null,0,null,null,null,null,null,null,null,null,null,null,0,null,null,null,null,0,0,null,null,null,0,null,null,null,null,0,0,null,null,null,null,null,null,null,null,null,null,0,null,null,0,0]
["NIVEL TÉCNICO",null,{"$f":"SUM(C46:C52)","v":0},{"$f":"SUM(D46:D52)","v":0},{"$f":"SUM(E46:E52)","v":0},{"$f":"SUM(F46:F52)","v":0},0,0,0,0,0,0,0,0,0,{"$f":"SUM(P46:P52)","v":0},{"$f":"SUM(Q46:Q52)","v":0},{"$f":"SUM(R46:R52)","v":0},{"$f":"SUM(S46:S52)","v":0},{"$f":"SUM(T46:T52)","v":0},{"$f":"SUM(U46:U52)","v":0},{"$f":"SUM(V46:V52)","v":0},{"$f":"SUM(W46:W52)","v":0},{"$f":"SUM(X46:X52)","v":0},{"$f":"SUM(Y46:Y52)","v":0},{"$f":"SUM(Z46:Z52)","v":0},{"$f":"SUM(AA46:AA52)","v":0},{"$f":"SUM(AB46:AB52)","v":0},{"$f":"SUM(AC46:AC52)","v":0},{"$f":"SUM(AD46:AD52)","v":0},{"$f":"SUM(AE46:AE52)","v":0},{"$f":"SUM(AF46:AF52)","v":0},{"$f":"SUM(AG46:AG52)","v":0},{"$f":"SUM(AH46:AH52)","v":0},{"$f":"SUM(AI46:AI52)","v":0},{"$f":"SUM(AJ46:AJ52)","v":0},{"$f":"SUM(AK46:AK52)","v":0},{"$f":"SUM(AL46:AL52)","v":0},{"$f":"SUM(AM46:AM52)","v":0},{"$f":"SUM(AN46:AN52)","v":0},{"$f":"SUM(AO46:AO52)","v":0},{"$f":"SUM(AP46:AP52)","v":0},{"$f":"SUM(AQ46:AQ52)","v":0},{"$f":"SUM(AR46:AR52)","v":0},{"$f":"SUM(AS46:AS52)","v":0},{"$f":"SUM(AT46:AT52)","v":0},{"$f":"SUM(AU46:AU52)","v":0}]
[null,null,null,null,{"$f":"D46*C46*12","v":0},null,null,null,null,null,null,null,null,null,null,{"$f":"SUM(E46:O46)","v":0},null,null,null,null,{"$f":"SUM(Q46:T46)","v":0},{"$f":"P46+U46","v":0},null,null,null,{"$f":"SUM(W46:Y46)","v":0},null,null,null,null,{"$f":"SUM(AA46:AD46)","v":0},{"$f":"Z46+AE46","v":0},null,null,null,null,null,null,null,null,null,null,{"$f":"SUM(AG46:AP46)","v":0},null,null,{"$f":"SUM(AR46:AS46)","v":0},{"$f":"V46+AF46+AQ46","v":0}]
[null,null,null,null,{"$f":"D47*C47*12","v":0},null,null,null,null,null,null,null,null,null,null,{"$f":"SUM(E47:O47)","v":0},null,null,null,null,{"$f":"SUM(Q47:T47)","v":0},{"$f":"P47+U47","v":0},null,null,null,{"$f":"SUM(W47:Y47)","v":0},null,null,null,null,{"$f":"SUM(AA47:AD47)","v":0},{"$f":"Z47+AE47","v":0},null,null,null,null,null,null,null,null,null,null,{"$f":"SUM(AG47:AP47)","v":0},null,null,{"$f":"SUM(AR47:AS47)","v":0},{"$f":"V47+AF47+AQ47","v":0}]
[null,null,null,null,0,null,null,null,null,null,null,null,null,null,null,0,null,null,null,null,0,0,null,null,null,0,null,null,null,null,0,0,null,null,null,null,null,null,null,null,null,null,0,null,null,0,0]
[null,null,null,null,0,null,null,null,null,null,null,null,null,null,null,0,null,null,null,null,0,0,null,null,null,0,null,null,null,null,0,0,null,null,null,null,null,null,null,null,null,null,0,null,null,0,0]
[null,null,null,null,0,null,null,null,null,null,null,null,null,null,null,0,null,null,null,null,0,0,null,null,null,0,null,null,null,null,0,0,null,null,null,null,null,null,null,null,null,null,0,null,null,0,0]
[null,null,null,null,0,null,null,null,null,null,null,null,null,null,null,0,null,null,null,null,0,0,null,null,null,0,null,null,null,null,0,0,null,null,null,null,null,null,null,null,null,null,0,null,null,0,0]
[null,null,null,null,0,null,null,null,null,null,null,null,null,null,null,0,null,null,null,null,0,{"$f":"P52+U52","v":0},null,null,null,0,null,null,null,null,0,0,null,null,null,null,null,null,null,null,null,null,0,null,null,0,0]
["NIVEL ASISTENCIAL",null,{"$f":"SUM(C54:C59)","v":0},{"$f":"SUM(D54:D59)","v":0},{"$f":"SUM(E54:E59)","v":0},{"$f":"SUM(F54:F59)","v":0},0,0,0,0,0,0,0,0,0,{"$f":"SUM(P54:P59)","v":0},{"$f":"SUM(Q54:Q59)","v":0},{"$f":"SUM(R54:R59)","v":0},{"$f":"SUM(S54:S59)","v":0},{"$f":"SUM(T54:T59)","v":0},{"$f":"SUM(U54:U59)","v":0},{"$f":"SUM(V54:V59)","v":0},{"$f":"SUM(W54:W59)","v":0},{"$f":"SUM(X54:X59)","v":0},{"$f":"SUM(Y54:Y59)","v":0},{"$f":"SUM(Z54:Z59)","v":0},{"$f":"SUM(AA54:AA59)","v":0},{"$f":"SUM(AB54:AB59)","v":0},{"$f":"SUM(AC54:AC59)","v":0},{"$f":"SUM(AD54:AD59)","v":0},{"$f":"SUM(AE54:AE59)","v":0},{"$f":"SUM(AF54:AF59)","v":0},{"$f":"SUM(AG54:AG59)","v":0},{"$f":"SUM(AH54:AH59)","v":0},{"$f":"SUM(AI54:AI59)","v":0},{"$f":"SUM(AJ54:AJ59)","v":0},{"$f":"SUM(AK54:AK59)","v":0},{"$f":"SUM(AL54:AL59)","v":0},{"$f":"SUM(AM54:AM59)","v":0},{"$f":"SUM(AN54:AN59)","v":0},{"$f":"SUM(AO54:AO59)","v":0},{"$f":"SUM(AP54:AP59)","v":0},{"$f":"SUM(AQ54:AQ59)","v":0},{"$f":"SUM(AR54:AR59)","v":0},{"$f":"SUM(AS54:AS59)","v":0},{"$f":"SUM(AT54:AT59)","v":0},{"$f":"SUM(AU54:AU59)","v":0}]
[null,null,null,null,{"$f":"D54*C54*12","v":0},null,null,null,null,null,null,null,null,null,null,{"$f":"SUM(E54:O54)","v":0},null,null,null,null,{"$f":"SUM(Q54:T54)","v":0},{"$f":"P54+U54","v":0},null,null,null,{"$f":"SUM(W54:Y54)","v":0},null,null,null,null,{"$f":"SUM(AA54:AD54)","v":0},{"$f":"Z54+AE54","v":0},null,null,null,null,null,null,null,null,null,null,{"$f":"SUM(AG54:AP54)","v":0},null,null,{"$f":"SUM(AR54:AS54)","v":0},{"$f":"V54+AF54+AQ54","v":0}]
[null,null,null,null,{"$f":"D55*C55*12","v":0},null,null,null,null,null,null,null,null,null,null,{"$f":"SUM(E55:O55)","v":0},null,null,null,null,{"$f":"SUM(Q55:T55)","v":0},{"$f":"P55+U55","v":0},null,null,null,{"$f":"SUM(W55:Y55)","v":0},null,null,null,null,{"$f":"SUM(AA55:AD55)","v":0},{"$f":"Z55+AE55","v":0},null,null,null,null,null,null,null,null,null,null,{"$f":"SUM(AG55:AP55)","v":0},null,null,{"$f":"SUM(AR55:AS55)","v":0},{"$f":"V55+AF55+AQ55","v":0}]
[null,null,null,null,0,null,null,null,null,null,null,null,null,null,null,0,null,null,null,null,0,0,null,null,null,0,null,null,null,null,0,0,null,null,null,null,null,null,null,null,null,null,0,null,null,0,0]
[null,null,null,null,0,null,null,null,null,null,null,null,null,null,null,0,null,null,null,null,0,0,null,null,null,0,null,null,null,null,0,0,null,null,null,null,null,null,null,null,null,null,0,null,null,0,0]
[null,null,null,null,0,null,null,null,null,null,null,null,null,null,null,0,null,null,null,null,0,0,null,null,null,0,null,null,null,null,0,0,null,null,null,null,null,null,null,null,null,null,0,null,null,0,0]
[null,null,null,null,0,null,null,null,null,null,null,null,null,null,null,0,null,null,null,null,{"$f":"SUM(Q59:T59)","v":0},0,null,null,null,0,null,null,null,null,0,0,null,null,null,null,null,null,null,null,null,null,0,null,null,0,0]
["TOTAL EMPLEADOS PÚBLICOS",null,{"$f":"C53+C45+C38+C30+C23+C15","v":0},{"$f":"D15+D23+D30+D38+D45+D53","v":0},{"$f":"E15+E23+E30+E38+E45+E53","v":0},0,0,0,0,0,0,0,0,0,0,{"$f":"SUM(E60:O60)","v":0},{"$f":"Q15+Q23+Q30+Q38+Q45+Q53","v":0},0,0,0,{"$f":"SUM(Q60:T60)","v":0},{"$f":"P60+U60","v":0},{"$f":"W15+W23+W30+W38+W45+W53","v":0},0,0,{"$f":"SUM(W60:Y60)","v":0},0,0,0,0,{"$f":"SUM(AA60:AD60)","v":0},{"$f":"Z60+AE60","v":0},{"$f":"AG15+AG23+AG30+AG38+AG45+AG53","v":0},0,0,0,0,0,0,0,0,0,{"$f":"SUM(AG60:AP60)","v":0},0,0,{"$f":"SUM(AR60:AS60)","v":0},{"$f":"V60+AF60+AQ60","v":0}]
["TRABAJADORES OFICIALES"]
[null,null,null,null,{"$f":"D62*C62*12","v":0},null,null,null,null,null,null,null,null,null,null,{"$f":"SUM(E62:O62)","v":0},null,null,null,null,{"$f":"SUM(Q62:T62)","v":0},{"$f":"P62+U62","v":0},null,null,null,{"$f":"SUM(W62:Y62)","v":0},null,null,null,null,{"$f":"SUM(AA62:AD62)","v":0},{"$f":"Z62+AE62","v":0},null,null,null,null,null,null,null,null,null,null,{"$f":"SUM(AG62:AP62)","v":0},null,null,{"$f":"SUM(AR62:AS62)","v":0}]
[null,null,null,null,{"$f":"D63*C63*12","v":0},null,null,null,null,null,null,null,null,null,null,{"$f":"SUM(E63:O63)","v":0},null,null,null,null,0,{"$f":"P63+U63","v":0},null,null,null,{"$f":"SUM(W63:Y63)","v":0},null,null,null,null,{"$f":"SUM(AA63:AD63)","v":0},{"$f":"Z63+AE63","v":0},null,null,null,null,null,null,null,null,null,null,{"$f":"SUM(AG63:AP63)","v":0},null,null,{"$f":"SUM(AR63:AS63)","v":0}]
[null,null,null,null,0,null,null,null,null,null,null,null,null,null,null,0,null,null,null,null,0,0,null,null,null,0,null,null,null,null,0,0,null,null,null,null,null,null,null,null,null,null,0,null,null,0]
[null,null,null,null,0,null,null,null,null,null,null,null,null,null,null,0,null,null,null,null,0,0,null,null,null,0,null,null,null,null,0,0,null,null,null,null,null,null,null,null,null,null,0,null,null,0]
[null,null,null,null,0,null,null,null,null,null,null,null,null,null,null,0,null,null,null,null,0,0,null,null,null,0,null,null,null,null,0,0,null,null,null,null,null,null,null,null,null,null,0,null,null,0]
[null,null,null,null,0,null,null,null,null,null,null,null,null,null,null,0,null,null,null,null,0,0,null,null,null,0,null,null,null,null,0,0,null,null,null,null,null,null,null,null,null,null,0,null,null,0]
[null,null,null,null,0,null,null,null,null,null,null,null,null,null,null,0,null,null,null,null,0,0,null,null,null,0,null,null,null,null,0,0,null,null,null,null,null,null,null,null,null,null,0,null,null,0]
[null,null,null,null,0,null,null,null,null,null,null,null,null,null,null,0,null,null,null,null,0,0,null,null,null,0,null,null,null,null,0,0,null,null,null,null,null,null,null,null,null,null,0,null,null,0]
[null,null,null,null,{"$f":"D70*C70*12","v":0},null,null,null,null,null,null,null,null,null,null,0,null,null,null,null,0,0,null,null,null,0,null,null,null,null,0,0,null,null,null,null,null,null,null,null,null,null,0,null,null,0]
[null,null,null,null,0,null,null,null,null,null,null,null,null,null,null,0,null,null,null,null,0,0,null,null,null,0,null,null,null,null,0,0,null,null,null,null,null,null,null,null,null,null,0,null,null,0]
[null,null,null,null,0,null,null,null,null,null,null,null,null,null,null,{"$f":"SUM(E72:O72)","v":0},null,null,null,null,0,0,null,null,null,0,null,null,null,null,0,0,null,null,null,null,null,null,null,null,null,null,0,null,null,0]
[null,null,null,null,0,null,null,null,null,null,null,null,null,null,null,0,null,null,null,null,0,0,null,null,null,0,null,null,null,null,0,0,null,null,null,null,null,null,null,null,null,null,0,null,null,0]
[null,null,null,null,0,null,null,null,null,null,null,null,null,null,null,{"$f":"SUM(E74:O74)","v":0},null,null,null,null,0,{"$f":"P74+U74","v":0},null,null,null,0,null,null,null,null,0,0,null,null,null,null,null,null,null,null,null,null,0,null,null,0]
["TOTAL TRABAJADORES OFICIALES",null,{"$f":"SUM(C62:C74)","v":0},{"$f":"SUM(D62:D74)","v":0},{"$f":"SUM(E62:E74)","v":0},{"$f":"SUM(F62:F74)","v":0},0,0,0,0,0,0,0,0,0,{"$f":"SUM(P62:P74)","v":0},{"$f":"SUM(Q62:Q74)","v":0},{"$f":"SUM(R62:R74)","v":0},{"$f":"SUM(S62:S74)","v":0},{"$f":"SUM(T62:T74)","v":0},{"$f":"SUM(U62:U74)","v":0},{"$f":"SUM(V62:V74)","v":0},{"$f":"SUM(W62:W74)","v":0},{"$f":"SUM(X62:X74)","v":0},{"$f":"SUM(Y62:Y74)","v":0},{"$f":"SUM(Z62:Z74)","v":0},{"$f":"SUM(AA62:AA74)","v":0},{"$f":"SUM(AB62:AB74)","v":0},{"$f":"SUM(AC62:AC74)","v":0},{"$f":"SUM(AD62:AD74)","v":0},{"$f":"SUM(AE62:AE74)","v":0},{"$f":"SUM(AF62:AF74)","v":0},{"$f":"SUM(AG62:AG74)","v":0},{"$f":"SUM(AH62:AH74)","v":0},{"$f":"SUM(AI62:AI74)","v":0},{"$f":"SUM(AJ62:AJ74)","v":0},{"$f":"SUM(AK62:AK74)","v":0},{"$f":"SUM(AL62:AL74)","v":0},{"$f":"SUM(AM62:AM74)","v":0},{"$f":"SUM(AN62:AN74)","v":0},{"$f":"SUM(AO62:AO74)","v":0},{"$f":"SUM(AP62:AP74)","v":0},{"$f":"SUM(AQ62:AQ74)","v":0},{"$f":"SUM(AR62:AR74)","v":0},{"$f":"SUM(AS62:AS74)","v":0},{"$f":"SUM(AT62:AT74)","v":0},{"$f":"V75+AF75+AQ75","v":0}]
["TOTAL PLANTA DE PERSONAL",null,{"$f":"C60+C75","v":0},{"$f":"D60+D75","v":0},{"$f":"E60+E75","v":0},{"$f":"F60+F75","v":0},0,0,0,0,0,0,0,0,0,{"$f":"SUM(E76:O76)","v":0},{"$f":"Q60+Q75","v":0},{"$f":"R60+R75","v":0},{"$f":"S60+S75","v":0},{"$f":"T60+T75","v":0},{"$f":"SUM(Q76:T76)","v":0},{"$f":"P76+U76","v":0},{"$f":"W60+W75","v":0},{"$f":"X60+X75","v":0},{"$f":"Y60+Y75","v":0},{"$f":"SUM(W76:Y76)","v":0},{"$f":"AA60+AA75","v":0},{"$f":"AB60+AB75","v":0},{"$f":"AC60+AC75","v":0},{"$f":"AD60+AD75","v":0},{"$f":"SUM(AA76:AD76)","v":0},{"$f":"Z76+AE76","v":0},{"$f":"AG60+AG75","v":0},{"$f":"AH60+AH75","v":0},{"$f":"AI60+AI75","v":0},{"$f":"AJ60+AJ75","v":0},{"$f":"AK60+AK75","v":0},{"$f":"AL60+AL75","v":0},{"$f":"AM60+AM75","v":0},{"$f":"AN60+AN75","v":0},{"$f":"AO60+AO75","v":0},{"$f":"AP60+AP75","v":0},{"$f":"SUM(AG76:AP76)","v":0},{"$f":"AR60+AR75","v":0},{"$f":"AS60+AS75","v":0},{"$f":"SUM(AR76:AS76)","v":0},{"$f":"V76+AF76+AQ76","v":0}]
[]
[]
[]
[]
[]
[]
[]
[]
[]
[]
[]
[]
[]
[]
[]
[]
[]
[]
[]
[]
[]
[]
[]
[]
[]
[]
[]
[]
[null,null,"RESUMEN - ANTEPROYECTO PLANTA DE PERSONAL"]
[]
[null,null,"CUENTA ",null,null,null,"TOTAL",null,null,null,null,null,"TOTAL PLANTA DE PERSONAL"]
[null,null,null,null,null,null,"ELPLEADOS PÚBLICOS",null,null,"TRABAJADORES OFICIALES "]
[]
[null,null,"GASTOS DE PERSONAL ",null,null,null,{"$f":"G112+G118+G124","v":0},null,null,{"$f":"J112+J118+J124","v":0},null,null,{"$f":"M112+M118+M124","v":0}]
[]
[null,null,"         Salario ",null,null,null,{"$f":"G114+G116","v":0},null,null,{"$f":"J114+J116","v":0},null,null,{"$f":"SUM(M114:O117)","v":0}]
[]
[null,null,"                    Factores salariales comunes ",null,null,null,{"$f":"P60","v":0},null,null,{"$f":"P75","v":0},null,null,{"$f":"G114+J114","v":0}]
[]
[null,null,"                     Factores salariales especiales ",null,null,null,{"$f":"U60","v":0},null,null,{"$f":"U75","v":0},null,null,{"$f":"G116+J116","v":0}]
[]
[null,null,"         Remuneraciones no constitutivas de factor salarial ",null,null,null,{"$f":"G120+G122","v":0},null,null,{"$f":"J120+J122","v":0},null,null,{"$f":"SUM(M120:O123)","v":0}]
[]
[null,null,"                    Prestaciones sociales según definición legal ",null,null,null,{"$f":"Z60","v":0},null,null,{"$f":"Z75","v":0},null,null,{"$f":"G120+J120","v":0}]
[]
[null,null,"                     Otras prestaciones no constitutivas de factor salarial ",null,null,null,{"$f":"AE60","v":0},null,null,{"$f":"AE75","v":0},null,null,{"$f":"G122+J122","v":0}]
[]
[null,null,"         Contribuciones inherentes a la nómina ",null,null,null,{"$f":"AQ60","v":0},null,null,{"$f":"AQ75","v":0},null,null,{"$f":"G124+J124","v":0}]
[]
[null,null,"TRANSFERENCIAS CORRIENTES",null,null,null,{"$f":"G128","v":0},null,null,{"$f":"J128","v":0},null,null,{"$f":"M128","v":0}]
[]
[null,null,"         Prestaciones sociales relacionadas con el empleo",null,null,null,{"$f":"G130+G132","v":0},null,null,{"$f":"J130+J132","v":0},null,null,{"$f":"G128+J128","v":0}]
[]
[null,null,"                     Incapacidades",null,null,null,{"$f":"AR60","v":0},null,null,{"$f":"AR75","v":0},null,null,{"$f":"G130+J130","v":0}]
[]
[null,null,"                     Licencias de maternidad y paternidad",null,null,null,{"$f":"AS60","v":0},null,null,{"$f":"AS75","v":0},null,null,{"$f":"G132+J132","v":0}]

{"sheet":"Formulario 4A - Nómina","index":1,"n_rows":40,"n_cols":9,"rows_kept":40,"cut":false,"hidden":false,"merged":[[38,7,38,8],[39,7,39,8],[9,1,11,1],[9,2,11,2],[9,3,11,3],[9,4,9,6],[9,7,11,7],[9,8,11,8],[10,4,11,4],[10,5,10,6],[7,1,7,4],[0,0,0,9],[1,0,1,9],[2,0,2,9],[4,2,4,8],[5,2,5,8]]}
["MINISTERIO DE HACIENDA Y CRÉDITO PÚBLICO "]
["Dirección General del Presupuesto Público Nacional"]
["Formulario 4A Certificación de Nómina"]
[]
[null,"SECCIÓN"]
[null,"UNIDAD EJECUTORA",{"$f":"IFERROR(VLOOKUP(C5,DESPLEGABLES!A1:B198,2,FALSE),\"\")","v":""}]
[]
[null,"ANTEPROYECTO COSTO DE NÓMINA - VIGENCIA",null,null,null,null,null,2021]
[]
[null,"DENOMINACIÓN DE CARGO","Grado","Planta Actual","Nómina Provista",null,null,"Total Cargos Provistos","Cargos Vacantes"]
[null,null,null,null,"Libre Nombramiento","Carrera Administrativa"]
[null,null,null,null,null,"Propiedad","Provisionales"]
[null,null,null,1,2,3,4,"5=2+3+4","6=1-5"]
[null,"Empleados Públicos"]
[null,null,null,null,null,null,null,{"$f":"F15+E15+G15","v":0},{"$f":"D15-H15","v":0}]
[null,null,null,null,null,null,null,{"$f":"F16+E16+G16","v":0},{"$f":"D16-H16","v":0}]
[null,null,null,null,null,null,null,{"$f":"F17+E17+G17","v":0},0]
[null,null,null,null,null,null,null,{"$f":"F18+E18+G18","v":0},0]
[null,null,null,null,null,null,null,0,0]
[null,null,null,null,null,null,null,0,0]
[null,null,null,null,null,null,null,0,0]
[null,"Total Empleados Públicos",null,{"$f":"SUM(D15:D21)","v":0},{"$f":"SUM(E15:E21)","v":0},0,0,{"$f":"SUM(H15:H21)","v":0},{"$f":"SUM(I15:I21)","v":0}]
[null,"Trabajadores Oficiales"]
[null,null,null,null,null,null,null,{"$f":"E24+F24+G24","v":0},{"$f":"D24-H24","v":0}]
[null,null,null,null,null,null,null,{"$f":"E25+F25+G25","v":0},{"$f":"D25-H25","v":0}]
[null,null,null,null,null,null,null,{"$f":"E26+F26+G26","v":0},0]
[null,null,null,null,null,null,null,0,0]
[null,null,null,null,null,null,null,0,0]
[null,null,null,null,null,null,null,0,{"$f":"D29-H29","v":0}]
[null,null,null,null,null,null,null,0,0]
[null,"Total  Trabajadores Oficiales",null,{"$f":"SUM(D24:D30)","v":0},{"$f":"SUM(E24:E30)","v":0},0,0,{"$f":"SUM(H24:H30)","v":0},{"$f":"SUM(I24:I30)","v":0}]
[null,"Total Personal",null,{"$f":"D22+D31","v":0},{"$f":"E22+E31","v":0},{"$f":"F22+F31","v":0},0,{"$f":"H22+H31","v":0},{"$f":"I22+I31","v":0}]
[]
[]
[]
[]
[]
[]
[]
[null,"Ciudad y fecha ",null,null,null,null,null,"Jefe de Personal"]

{"sheet":"DESPLEGABLES","index":2,"n_rows":197,"n_cols":37,"rows_kept":197,"cut":false,"hidden":true,"merged":[]}
["SECCIÓN ","UNIDAD EJECUTORA ",null,"FONDOS ESPECIALES ","COD",null,"IMPUESTOS INDIRECTOS -FE","CÓD ",null,"CONTRIBUCIONES SOCIALES- EP","CÓD",null,"CONTRIBUCIONES SOCIALES -FE","CÓD",null,"CONTRIBUCIONES DIVERSAS - FE","CÓD",null,"CONTRIBUCIONES DIVERSAS - ESTAPÚBLICO","CÓD",null,"TASAS Y DERECHOS ADMINISTRATIVOS - EP","CÓD",null,"DERECHOS ECONÓMICOS POR USO DE RECURSOS NATURALES- EP","CÓD",null,"DERECHOS ECONÓMICOS POR USO DE RECURSOS NATURALES- FE","CÓD",null,"TRANSFERENCIAS CORRIENTES- EP","CÓD",null,"TRANSFERENCIAS CORRIENTES- FE","CÓD",null,"CPC"]
["010101","CONGRESO DE LA REPUBLICA  SENADO GESTION GENERAL",null,"CONTRIBUCIÓN ENTIDADES VIGILADAS CONTRALORIA GENERAL NACION",602,null,"Impuesto social a las armas y municiones",10,null,"Salud","01",null,"Salud","01",null,"Contribución - Comisión de Regulación de Comunicaciones (CRC)","01",null,"Contribución - Superintendencia de Sociedades","04",null,"Expedición de visas","01",null,"Derecho económico por uso del subsuelo","01",null,"Autorización de uso de zonas de fondeo - DIMAR ","06",null,"Indemnizaciones relacionadas con seguros no de vida","01",null,"Indemnizaciones relacionadas con seguros no de vida","01",null,"Agricultura, silvicultura y productos de la pesca"]
["010102","CONGRESO DE LA REPUBLICA - CAMARA DE REPRESENTANTES - GESTION GENERAL",null,"CONTRIBUCIÓN ENTIDADES VIGILADAS SUPERINTENDENCIA SUBSIDIO FAMILIAR",603,null,"Impuesto de remate y adjudicaciones",11,null,"Pensión","02",null,"Pensión","02",null,"Contribución - Comisión de Regulación de Energía y Gas (CREG)","02",null,"Contribución - Superintendencia de Vigilancia y Seguridad Privada","05",null,"Expedición de pasaportes","02",null,"Concesiones mineras","02",null,null,null,null,"Sentencias y conciliaciones","02",null,"Sentencias y conciliaciones","02",null,"Minerales; electricidad, gas y agua"]
["020101","PRESIDENCIA DE LA REPUBLICA - GESTION GENERAL",null,"FINANCIACION SECTOR JUSTICIA",609,null,"Sobretasa nacional a la gasolina",12,null,"Contribuciones asignaciones de retiro militares y policía","03",null,null,null,null,"Contribución - Comisión de Regulación de Agua Potable y Saneamiento Básico (CRA)","03",null,"Contribución - Superintendencia de la Economía Solidaria","06",null,"Apostilla o legalización","03",null,"Contraprestaciones portuarias","03",null,null,null,null,"Devolución IVA - Instituciones de educación superior ","04",null,"Prescripción de depósitos judiciales","03",null,"Productos alimenticios, bebidas y tabaco; textiles, prendas de vestir y productos de cuero"]
["020900","AGENCIA PRESIDENCIAL DE COOPERACIÓN INTERNACIONAL DE COLOMBIA, APC - COLOMBIA",null,"FONDO DE DEFENSA NACIONAL","6010",null,"Sobretasa al ACPM",13,null,null,null,null,null,null,null,"Contribución - Superintendencia del Subsidio Familiar","07",null,"Contribución de vigilancia - Superintendencia de Industria y Comercio","07",null,"Protocolización de escrituras públicas","04",null,"Concesiones parques naturales","05",null,null,null,null,"Transferencias de otras unidades de gobierno","05",null,"Devolución IVA - Instituciones de educación superior","04",null,"Otros bienes transportables, (excepto productos metálicos, maquinaria y equipo)"]
["021100","UNIDAD NACIONAL PARA LA GESTIÓN DEL RIESGO DE DESASTRES",null,"FONDO ESTUPEFACIENTES - MINSALUD","6013",null,"Impuesto de salida",15,null,"CONTRIBUCIONES ASOCIADAS A NÓMINA - EP","CÓD",null,"CONTRIBUCIONES ASOCIADAS A NÓMINA -FE","CÓD",null,"Contribución - Fondo de Compensación Ambiental",13,null,"Contribución de seguimiento - Superintendencia de Industria y Comercio","09",null,"Expedición de certificaciones en el exterior","05",null,null,null,null,null,null,null,"Recursos por bienes mostrencos y vocaciones hereditarias","07",null,"Transferencias de otras unidades de gobierno","05",null,"Productos metálicos, maquinaria y equipo"]
["021200","AGENCIA COLOMBIANA PARA LA REINCORPORACIÓN Y LA NORMALIZACIÓN - ARN",null,"FONDOS INTERNOS MINISTERIO DEFENSA","6014",null,null,null,null,"ICBF","01",null,"Escuelas industriales e institutos técnicos","04",null,"Contribución - Fondo Apoyo Financiero Zonas No Interconectadas (FAZNI) ",14,null,"Contribución - Superintendencia Financiera de Colombia","10",null,"Certificación sobre la existencia legal de sociedades","06",null,null,null,null,null,null,null,"Compensación UPC – SSS","09",null,"Recursos de terceros en consignación ","06",null,"Construcción y servicios de la construcción"]
["021300","AGENCIA NACIONAL INMOBILIARIA VIRGILIO BARCO VARGAS",null,"FONDOS INTERNOS POLICIA NACIONAL","6015",null,null,null,null,"SENA","02",null,"Aportes de cesantías","05",null,"Contribución - Fondo Apoyo Financiero para la Energización de las Zonas Rurales Interconectadas (FAER)",15,null,"Contribución - Superintendencia de Servicios Públicos Domiciliarios","11",null,"Reconocimiento y autenticación de firmas ante cónsules colombianos","07",null,"CÁLCULO POR INGRESOS CORRIENTES",null,null,null,null,null,"Mercancías Aprehendidas, Decomisadas o Abandonadas","11",null,"Recursos por procesos de extinción de dominio","08",null,"Servicios de venta y de distribución; alojamiento; servicios de suministro de comidas y bebidas; servicios de transporte; y servicios de distribución de electricidad, gas y agua"]
["021401","AGENCIA DE RENOVACION DEL TERRITORIO – ART - GESTIÓN GENERAL",null,"FONDO ROTATORIO DE MINAS Y ENERGÍA","6017",null,null,null,null,"ESAP","03",null,null,null,null,"Contribución - Fondo de Energías No Convencionales y Gestión Eficiente de la Energía (FENOGE)",16,null,"Contribucción - Superintendencia de Puertos y Transporte",12,null,"Expedición de tarjetas de registro consular","08",null,null,null,null,null,null,null,null,null,null,"Compensación UPC – SSS","09",null,"Servicios financieros y servicios conexos, servicios inmobiliarios y servicios de leasing"]
["021402","DIRECCIÓN DE SUSTITUCIÓN DE CULTIVOS ILÍCITOS",null,"ESCUELAS INDUSTRIALES E INSTITUTOS TECNICOS","6019",null,null,null,null,null,null," ",null,null,null,"Contribución - Fondo Especial de Energía Social (FOES)",17,null,"Contribucción pensionados militares y policia",23,null,"Trámite de nacionalidad colombiana por adopción","09",null,"CONTRIBUCIONES SOCIALES- EP",null,null,"TASAS Y DERECHOS ADMINISTRATIVOS - EP",null,null,"IMPUESTOS INDIRECTOS -FE",null,null,"Recursos FRISCO",10,null,"Servicios prestados a las empresas y servicios de producción"]
["030101","DEPARTAMENTO DE PLANEACION - GESTION GENERAL",null,"FONDO DE RECURSOS SOAT Y FONSAT (ANTES FOSYGA)","6021",null,null,null,null,"CONTRIBUCIONES ESPECIALES  - EP","CÓD",null,null,null,null,"Contribución - Fondo Especial Cuota de Fomento de Gas Natural",18,null,"Derecho económico por precios altos",33,null,"Trámite de renuncia a la nacionalidad colombiana","10",null,"1.02.1.01.01. Salud",null,null,"1.02.2.01. Expedición de visas",null,null,"1.01.2.10. Impuesto social a las armas y municiones",null,null,"Prescripción especial adquisitivo de dominio",12,null,"Servicios para la comunidad, sociales y personales"]
["030300","UNIDAD ADMINISTRATIVA ESPECIAL - AGENCIA NACIONAL DE CONTRATACIÓN PÚBLICA - COLOMBIA COMPRA EFICIENTE.",null,"FONDO DE SOLIDARIDAD PENSIONAL","6022",null,null,null,null,"Recaudo Ley 55 de 1985 Superintendencia de Notariado y Registro","03",null,"CONTRIBUCIONES ESPECIALES -FE","CÓD",null,"Contribución - Fondo Especial para el programa de Normalización de Redes Eléctricas (Prone)",19,null,"Derecho económico por participación en la producción",34,null,"Expedición de certificados de antepasados de extranjeros nacionalizados como colombianos por adopción","11",null,"1.02.1.01.02. Pensión",null,null,"1.02.2.02. Expedición de pasaportes",null,null,"1.01.2.11. Impuesto de remate y adjudicaciones",null,null,"Recursos por acuerdos de compartición Ley 1743 de 2014",13]
["032400","SUPERINTENDENCIA DE SERVICIOS PUBLICOS DOMICILIARIOS",null,"COMISION DE REGULACION DE TELECOMUNICACIONES","6023",null,"MULTAS Y SANCIONES","CÓD ",null,null,null,null,"Cuota de fiscalización y auditaje","01",null,"Contribución - Fondo de Solidaridad para Subsidios y Redistribución de Ingresos",20,null,"Contribución Nacional de Valorización",40,null,"Expedición de certificados de no objeción a la permanencia en el exterior de estudiantes colombianos","12",null,"1.02.1.01.03. Contribuciones asignaciones de retiro militares y policía",null,null,"1.02.2.03. Apostilla o legalización",null,null,"1.01.2.12. Sobretasa nacional a la gasolina",null,null,"Del Fondo para la Modernización, Descongestión y Bienestar de la Administración de la Justicia ",14]
["040101","DEPARTAMENTO ADMINISTRATIVO NACIONAL DE ESTADISTICA (DANE) - GESTION GENERAL",null,"COMISION DE REGULACION DE ENERGIA Y GAS","6024",null,"Multas Superintendencias","01",null,null,null,null,"Aporte a la administración de justicia","02",null,"Contribución - Fondo Emprender",21,null,"Contribución Industria Militar – ICFE",45,null,"Expedición de cédulas de ciudadanía","13",null,null,null,null,"1.02.2.04. Protocolización de escrituras públicas",null,null,"1.01.2.13. Sobretasa al ACPM",null,null,"Distribucción Ley 55 de 1985 Superintendencia de Notariado y Registro ","15"]
["040200","FONDO ROTATORIO DEL DANE",null,"COMISION DE REGULACION DE AGUA POTABLE","6025",null,"Sanciones aduaneras","02",null,"CENSATÍAS","CÓD",null,null,null,null,"Contribución - Fondo Nacional de las Universidades Estatales de Colombia",22,null,"Monetización cuota de aprendizaje",48,null,"Expedición de tarjetas de identidad","14",null,"CONTRIBUCIONES ASOCIADAS A NÓMINA - EP",null,null,"1.02.2.05. Expedición de certificaciones en el exterior ",null,null,"1.01.2.15. Impuesto de salida"]
["040300","INSTITUTO GEOGRAFICO AGUSTIN CODAZZI - IGAC",null,"INSTITUTO DE ESTUDIOS DEL MINISTERIO PUBLICO","6031",null,"Sanciones disciplinarias ","03",null,"Cesantías definitivas ","01",null,null,null,null,"Cuota de compensación militar - Fondo de Defensa Nacional",24,null,"Contribucción servicios notariales ",51,null,"Expedición de certificaciones no sujetas a reserva legal","15",null,"1.02.1.02.01. ICBF",null,null,"1.02.2.06. Certificación sobre la existencia legal de sociedades",null,null,null,null,null,"TASAS Y DERECHOS ADMINISTRATIVOS - FE"]
["050101","DEPARTAMENTO ADMINISTRATIVO DE LA FUNCION PUBLICA - GESTION GENERAL",null,"FONDO SALUD FUERZAS MILITARES","6033",null,"Sanciones contractuales ","04",null,"Cesantías parciales ","02",null,null,null,null,"Aporte sobre pólizas de seguros - Fondo Nacional de Bomberos de Colombia",25,null,null,null,null,"Expedición de bases de datos sujeta a reserva legal","16",null,"1.02.1.02.02. SENA",null,null,"1.02.2.07. Reconocimiento y autenticación de firmas ante cónsules colombianos",null,null,"CONTRIBUCIONES ESPECIALES -FE",null,null,"1.02.2.15. Certificaciones y constancias "]
["050300","ESCUELA SUPERIOR DE ADMINISTRACION PUBLICA (ESAP)",null,"FONDO DE SALUD POLICIA NACIONAL","6034",null,"Sanciones administrativas","05",null,"Deuda Cesantías soldados profesionales afiliados Caja Promotora de Vivienda Militar y de Policía - CPVMP","03",null,null,null,null,"Arancel judicial - Ley 1394 de 2010",27,null,null,null,null,"Expedición de certificaciones excepcionales de nacionalidad","17",null,"1.02.1.02.03. ESAP",null,null,"1.02.2.08. Expedición de tarjetas de registro consular",null,null,"1.02.1.03.01. Cuota de fiscalización y auditaje",null,null,"1.02.2.39. Expedición de tarjetas profesionales "]
["110101","MINISTERIO DE RELACIONES EXTERIORES - GESTION GENERAL",null,"FONDO COMPENSACION AMBIENTAL","6035",null,"Sanciones fiscales","06",null,"Deuda Cesantías Policía Nacional afiliados Caja Promotora de Vivienda Militar y de Policía - CPVMP","04",null,null,null,null,"Arancel judicial CSJ - Ley 1653 de 2013",28,null,null,null,null,"Expedición de certificados de Registro Civil","18",null,null,null,null,"1.02.2.09. Trámite de nacionalidad colombiana por adopción",null,null,"1.02.1.03.02. Aporte a la administración de justicia",null,null,"1.02.2.40. Derechos de registro "]
["110200","FONDO ROTATORIO DEL MINISTERIO DE RELACIONES EXTERIORES",null,"PENSIONES EPSA-CVC","6036",null,"Multas judiciales ","07",null,null,null,null,null,null,null,"Arancel judicial - Ley 1743 de 2014",29,null,null,null,null,"Impresión de publicaciones de la Organización Electoral","19",null,"CONTRIBUCIONES DIVERSAS - ESTAPÚBLICO",null,null,"1.02.2.10. Trámite de renuncia a la nacionalidad colombiana",null,null,null,null,null,"1.02.2.41. Autorización para el manejo de sustancias químicas controladas"]
["110400","UNIDAD ADMINISTRATIVA ESPECIAL MIGRACION COLOMBIA",null,"FONDO SOLIDARIDAD PARA SUBSIDIOS Y REDISTRIBUCION INGRESOS","6039",null,"Sanciones por desestimiento ","08",null,null,null,null,null,null,null,"Contribución especial arbitral",30,null,null,null,null,"Venta de licencias de software","20",null,"1.02.1.04.04. Contribución - Superintendencia de Sociedades",null,null,"1.02.2.11. Expedición de certificados de antepasados de extranjeros nacionalizados como colombianos por adopción",null,null,null,null,null,"1.02.2.43. Permiso por tenencia y porte de armas "]
["120101","MINISTERIO DE JUSTICIA Y DEL DERECHO - GESTIÓN GENERAL",null,"FONDO SEGURIDAD Y CONVIVENCIA CIUDADANA","6040",null,null,null,null,null,null,null,null,null,null,"Contribución especial para laudos arbitrales de contenido económico",31,null,null,null,null,"Expedición de cédula de extranjería","21",null,"1.02.1.04.05. Contribución - Superintendencia de Vigilancia y Seguridad Privada",null,null,"1.02.2.12. Expedición de  certificados de no objeción a la permanencia en el exterior de estudiantes colombianos",null,null,"CONTRIBUCIONES DIVERSAS - FE",null,null,"1.02.2.50. Tasa para la sostenibilidad del RUNT"]
["120400","SUPERINTENDENCIA DE NOTARIADO Y REGISTRO",null,"FONDO SUBSIDIO SOBRETASA GASOLINA LEY 488/98","6041",null,null,null,null,null,null,null,null,null,null,"Aporte afiliados al Sistema General de Pensiones - Subcuenta de Solidaridad",36,null,null,null,null,"Certificación de movimientos migratorios","22",null,"1.02.1.04.06. Contribución – Superintendencia de la Economía Solidaria",null,null,"1.02.2.13. Expedición de cédulas de ciudadanía",null,null,"1.02.1.04.01. Contribución - Comisión de Regulación de Comunicaciones (CRC) ",null,null,"1.02.2.52. Fiscalización y seguimiento a títulos mineros"]
["120800","INSTITUTO NACIONAL PENITENCIARIO Y CARCELARIO - INPEC",null,"FONDO PENSIONES SUPERINTENDENCIAS, CARBOCOL Y CAMINOS VECINALES","6042",null,null,null,null,null,null,null,null,null,null,"Aporte afiliados al Sistema General de Pensiones - Subcuenta de Subsistencia",37,null,null,null,null,"Permisos de ingreso y permanencia en el país","23",null,"1.02.1.04.08. Contribución de vigilancia - Superintendencia de Industria y Comercio",null,null,"1.02.2.14. Expedición de tarjetas de identidad",null,null,"1.02.1.04.02. Contribución - Comisión de Regulación de Energía y Gas (CREG)",null,null,"1.02.2.59. Expedición de licencias de fabricación de derivados de cannabis "]
["121000","UNIDAD ADMINISTRATIVA ESPECIAL AGENCIA NACIONAL DE DEFENSA JURIDICA DEL ESTADO",null,"UNIDAD ADMINISTRATIVA ESPECIAL DE COMERCIO EXTERIOR","6043",null,null,null,null,null,null,null,null,null,null,"Aportes diferenciales - Fondo de Solidaridad Pensional",38,null,null,null,null,"Expedición de salvoconductos de permanencia y salida del país","24",null,"1.02.1.04.09. Contribución de seguimiento - Superintendencia de Industria y Comercio",null,null,"1.02.2.15. Expedición de certificaciones no sujetas a reserva legal",null,null,"1.02.1.04.03. Contribución - Comisión de Regulación de Agua Potable y Saneamiento Básico (CRA)",null,null,"1.02.2.60. Seguimiento a las licencias de fabricación de derivados de cannabis "]
["121100","UNIDAD DE SERVICIOS PENITENCIARIOS Y CARCELARIOS - USPEC",null,"FONDO SOBRETASA AL ACPM (LEY 488/98)","6046",null,null,null,null,null,null,null,null,null,null,"Aporte pensionados - Fondo de Solidaridad Pensional",39,null,null,null,null,"Expedición de información no sujeta a reserva legal","25",null,"1.02.1.04.10. Contribución - Superintendencia Financiera de Colombia",null,null,"1.02.2.16. Expedición de bases de datos sujeta a reserva legal",null,null,"1.02.1.04.07. Contribución - Superintendencia del Subsidio Familiar",null,null,"1.02.2.68. Derechos marítimos "]
["130101","MINISTERIO DE HACIENDA Y CREDITO PUBLICO - GESTION GENERAL",null,"FONDO PARA DEFENSA DE DERECHOS E INTERESES COLECTIVOS","6049",null,null,null,null,null,null,null,null,null,null,"Contribución cultural a la boletería de los espectáculos públicos",41,null,null,null,null,"Expedición de la tarjeta de movilidad fronteriza","26",null,"1.02.1.04.11. Contribución - Superintendencia de Servicios Públicos Domiciliarios",null,null,"1.02.2.17. Expedición de certificaciones excepcionales de nacionalidad",null,null,"1.02.1.04.13. Contribución - Fondo de Compensación Ambiental",null,null,"1.02.2.69. Tasas Servicio de seguridad marítima "]
["130117","UNIDAD ADMINISTRATIVA ESPECIAL AGENCIA DEL INSPECTOR GENERAL DE TRIBUTOS, RENTAS Y CONTRIBUCIONES PARAFISCALES – ITRC",null,"FONDO DE INVESTIGACION EN SALUD (Ley643/01)","6050",null,null,null,null,null,null,null,null,null,null,"Recursos por la explotación de juegos de suerte y azar – Fondo de Investigación en Salud",42,null,null,null,null,"Inscripción al sistema de migración automática","27",null,"1.02.1.04.12. Contribución - Superintendencia de Puertos y Transporte",null,null,"1.02.2.18. Expedición de certificados de Registro Civil",null,null,"1.02.1.04.14. Contribución - Fondo Apoyo Financiero Zonas No Interconectadas (FAZNI) ",null,null,"1.02.2.70. Expedición de tarjetas de reservista y provisional"]
["130118","UNIDAD ADMINISTRATIVA ESPECIAL UNIDAD DE PROYECCIÓN NORMATIVA Y ESTUDIOS DE REGULACIÓN FINANCIERA – URF",null,"FONDO CONSERVACIÓN DE MUSEOS Y TEATROS","6051",null,null,null,null,null,null,null,null,null,null,"Contribución - Fondo Industria de la Construcción (FIC)",43,null,null,null,null,"Verificación migratoria en el sistema PLATINUM","28",null,"1.02.1.04.23. Contribución pensionados militares y policía",null,null,"1.02.2.19. Impresión de publicaciones de la Organización Electoral",null,null,"1.02.1.04.15. Contribución - Fondo Apoyo Financiero para la Energización de las Zonas Rurales Interconectadas (FAER)",null,null,"1.02.2.71. Expedición de cédulas militares y policiales "]
["130119","COLJUEGOS",null,"FONDO APOYO FINANCIERO ZONAS  NO INTERCONECTADAS (FAZNI)","6052",null,null,null,null,null,null,null,null,null,null,"Contribución SOAT - Fondo Nacional de Seguridad Vial",44,null,null,null,null,"Expedición de registros sanitarios","29",null,"1.02.1.04.33. Derecho económico por precios altos",null,null,"1.02.2.20. Venta de licencias de software",null,null,"1.02.1.04.16. Contribución - Fondo de Energías No Convencionales y Gestión Eficiente de la Energía (FENOGE)"]
["130800","UNIDAD ADMINISTRATIVA ESPECIAL CONTADURIA GENERAL DE LA NACION",null,"FONDO APOYO FINANCIERO PARA LA ENERGIZACIÓN DE LAS ZONAS RURALES INTERCONECTADAS (FAER)","6053",null,null,null,null,null,null,null,null,null,null,"Contribución - Fondo de Seguridad y Convivencia",46,null,null,null,null,"Renovación de la capacidad de laboratorios","30",null,"1.02.1.04.34. Derecho económico por participación en la producción",null,null,"1.02.2.21. Expedición de cédulas de extranjería",null,null,"1.02.1.04.17. Contribución - Fondo Especial de Energía Social (FOES)"]
["130900","SUPERINTENDENCIA DE LA ECONOMIA SOLIDARIA",null,"FONDO RECURSOS MONITOREO Y VIGILANCIA EDUCACION SUPERIOR","6055",null,null,null,null,null,null,null,null,null,null,"Contribucción - Fondo de Curadores Urbanos ",49,null,null,null,null,"Realización de exámenes de laboratorio","31",null,"1.02.1.04.40. Contribución Nacional de Valorización",null,null,"1.02.2.22. Certificación de movimientos migratorios",null,null,"1.02.1.04.18. Contribución - Fondo Especial Cuota de Fomento de Gas Natural",null,null,"TRANSFERENCIAS CORRIENTES- FE"]
["131000","UNIDAD ADMINISTRATIVA ESPECIAL DIRECCION DE IMPUESTOS Y ADUANAS NACIONALES",null,"FONDO FONPET - MAGISTERIO","6056",null,null,null,null,null,null,null,null,null,null,"Contribución - Fondo Notarias Decreto 1672 de 1997",50,null,null,null,null,"Expedición de certificados de registro sanitario","32",null,"1.02.1.04.45. Contribución Industria Militar - ICFE",null,null,"1.02.2.23. Permisos de ingreso y permanencia en el país",null,null,"1.02.1.04.19. Contribución - Fondo Especial para el programa de Normalización de Redes Eléctricas (Prone)",null,null,"1.02.6.01. Indemnizaciones relacionadas con seguros no de vida"]
["131200","UNIDAD DE INFORMACION Y ANALISIS FINANCIERO",null,"FONDO ESPECIAL DE ENERGÍA SOCIAL (FOES ART.118 DE LA LEY 812 DE 2003).","6057",null,null,null,null,null,null,null,null,null,null,"Contribución - Servicios notariales ",51,null,null,null,null,"Peajes","33",null,"1.02.1.04.48. Monetización cuota de aprendizaje ",null,null,"1.02.2.24. Expedición de salvoconductos de permanencia y salida del país",null,null,"1.02.1.04.20. Contribución – Fondo de Solidaridad para Subsidios y Redistribución de Ingresos",null,null,"1.02.6.03. Prescripción de depósitos judiciales"]
["131300","SUPERINTENDENCIA FINANCIERA DE COLOMBIA",null,"FONDO CUENTA DE CAPACITACIÓN Y PUBLICACIONES DE LA CONTRALORIA GENERAL REPUBLICA","6059",null,null,null,null,null,null,null,null,null,null,"De Indumil ",52,null,null,null,null,"Permiso para transporte de carga","34",null,"1.02.1.04.51. Contribucción servicios notariales",null,null,"1.02.2.25. Expedición de información no sujeta a reserva legal",null,null,"1.02.1.04.21. Contribución - Fondo Emprender",null,null,"1.02.6.04. Devolución IVA - Instituciones de educación superior"]
["131401","UNIDAD ADMINISTRATIVA ESPECIAL DE GESTION PENSIONAL Y CONTRIBUCIONES PARAFISCALES DE LA PROTECCIÓN SOCIAL - UGPPP - GESTION GENERAL",null,"FONDO DE PENSIONES FONDO ROTATORIO DE NOTARIADO Y REGISTRO","6060",null,null,null,null,null,null,null,null,null,null,null,null,null,null,null,null,"Autorización para el uso de materiales radiactivos y nucleares ","35",null,null,null,null,"1.02.2.26. Expedición de la tarjeta de movilidad fronteriza",null,null,"1.02.1.04.22. Contribución – Fondo Nacional de las Universidades Estatales de Colombia",null,null,"1.02.6.05. Transferencias de otras unidades de gobierno"]
["131500","FONDO ADAPTACION",null,"FONDO ESPECIAL COMISION NACIONAL DE BUSQUEDA (ART 18 LEY 971/05)","6061",null,null,null,null,null,null,null,null,null,null,null,null,null,null,null,null,"Evaluación de licencias y trámites ambientales","36",null,null,null,null,"1.02.2.27. Inscripción al sistema de migración automática",null,null,"1.02.1.04.24. Cuota de compensación militar - Fondo de Defensa Nacional",null,null,"1.02.6.06. Recursos de terceros en consignación"]
["140100","SERVICIO DE LA DEUDA PUBLICA NACIONAL",null,"FONDO ESPECIAL CUOTA DE FOMENTO DE GAS NATURAL","6062",null,null,null,null,null,null,null,null,null,null,null,null,null,null,null,null,"Seguimiento a licencias y trámites ambientales","37",null,null,null,null,"1.02.2.28. Verificación migratoria en el sistema PLATINUM",null,null,"1.02.1.04.25. Aporte sobre pólizas de seguros - Fondo Nacional de Bomberos de Colombia",null,null,"1.02.6.08. Recursos por procesos de extinción de dominio"]
["150101","MINISTERIO DE DEFENSA NACIONAL - GESTION GENERAL",null,"FONDO ESPECIAL PARA PROGRAMA DE NORMALIZACIÓN DE REDES ELECTRICAS","6063",null,null,null,null,null,null,null,null,null,null,null,null,null,null,null,null,"Tasa de inspección y vigilancia - Superintendencia Nacional de Salud","38",null,null,null,null,"1.02.2.29. Expedición de registros sanitarios",null,null,"1.02.1.04.27. Arancel judicial - Ley 1394 de 2010",null,null,"1.02.6.09. Compensación UPC – SSS"]
["150102","MINISTERIO DE DEFENSA NACIONAL - COMANDO GENERAL",null,"FONDO ESPECIAL REGISTRO UNICO NACIONAL DE TRANSITO - RUNT","6066",null,null,null,null,null,null,null,null,null,null,null,null,null,null,null,null,"Expedición de tarjetas profesionales ","39",null,"MULTAS Y SANCIONES - ESTAPÚBLICO",null,null,"1.02.2.30. Renovación de la capacidad de laboratorios",null,null,"1.02.1.04.28. Arancel judicial CSJ - Ley 1653 de 2013",null,null,"1.02.6.10.Recursos FRISCO"]
["150103","MINISTERIO DE DEFENSA NACIONAL - EJERCITO",null,"FONDO DE MODERNIZACIÓN, DESCONGESTIÓN Y BIENESTAR DE LA ADMINISTRACIÓN DE   JUSTICIA","6067",null,null,null,null,null,null,null,null,null,null,null,null,null,null,null,null,"Derechos de registro ","40",null,"1.02.3.01.01. Multas Superintendencias ",null,null,"1.02.2.31. Realización de exámenes de laboratorio",null,null,"1.02.1.04.29. Arancel judicial - Ley 1743 de 2014",null,null,"1.02.6.12.Prescripción especial adquisitivo de dominio"]
["150104","MINISTERIO DE DEFENSA NACIONAL - ARMADA",null,"FONDO RENTAS MONOPOLIO PARA EL SECTOR SALUD - LEY 643 DE 2001","6068",null,null,null,null,null,null,null,null,null,null,null,null,null,null,null,null,"Permiso para el uso del espectro radioeléctrico","42",null,"1.02.3.01.02. Sanciones Aduaneras ",null,null,"1.02.2.32. Expedición de certificados de registro sanitario",null,null,"1.02.1.04.30. Contribución especial arbitral",null,null,"1.02.6.13.Recursos por acuerdos de compartición Ley 1743 de 2014"]
["150105","MINISTERIO DE DEFENSA NACIONAL - FUERZA AEREA",null,"FONDO ESPECIAL IMPUESTO SOBRE LA RENTA PARA LA EQUIDAD - CREE","6069",null,null,null,null,null,null,null,null,null,null,null,null,null,null,null,null,"Permiso por tenencia y porte de armas","43",null,"1.02.3.01.03. Sanciones disciplinarias",null,null,"1.02.2.33. Peajes",null,null,"1.02.1.04.31. Contribución especial para laudos arbitrales de contenido económico",null,null,"1.02.6.14.Del Fondo para la Modernización, Descongestión y Bienestar de la Administración de la Justicia "]
["150111","MINISTERIO DE DEFENSA NACIONAL - SALUD",null,"FONDO NACIONAL DE BOMBEROS DE COLOMBIA","6070",null,null,null,null,null,null,null,null,null,null,null,null,null,null,null,null,"Derecho de ingreso áreas protegidas","44",null,"1.02.3.01.04. Sanciones contractuales",null,null,"1.02.2.34. Permiso para transporte de carga",null,null,"1.02.1.04.36. Aporte afiliados al Sistema General de Pensiones - Subcuenta de Solidaridad",null,null,"1.02.6.15.Distribucción Ley 55 de 1985 Superintendencia de Notariado y Registro "]
["150112","MINISTERIO DE DEFENSA NACIONAL - DIRECCION GENERAL MARITIMA - DIMAR",null,"FONDOS MINISTERIO JUSTICIA","6071",null,null,null,null,null,null,null,null,null,null,null,null,null,null,null,null,"Servicios de asistencia técnica en materia metrológica","45",null,"1.02.3.01.05. Sanciones administrativas",null,null,"1.02.2.35. Autorización para el uso de materiales radiactivos y nucleares",null,null,"1.02.1.04.37. Aporte afiliados al Sistema General de Pensiones - Subcuenta de Subsistencia"]
["150113","MINISTERIO DE DEFENSA NACIONAL - DIRECCION CENTRO DE REHABILITACION INCLUSIVA - DCRI",null,"FONDO DESARROLLO PEQUEÑA Y MEDIANA MINERÍA (ART. 151 LEY 1530 DE 2012)","6073",null,null,null,null,null,null,null,null,null,null,null,null,null,null,null,null,"Capacitación en metrología","46",null,"1.02.3.01.06. Sanciones fiscales ",null,null,"1.02.2.36. Evaluación de licencias y trámites ambientales",null,null,"1.02.1.04.38. Aportes diferenciales - Fondo de Solidaridad Pensional"]
["150300","CAJA DE RETIRO DE LAS FUERZAS MILITARES",null,"FONDO ESPECIAL DE PENSIONES TELECOM, INRAVISIÓN Y TELEASOCIADAS","6074",null,null,null,null,null,null,null,null,null,null,null,null,null,null,null,null,"Calibración y medición metrológica","47",null,"1.02.3.01.07. Multas judiciales ",null,null,"1.02.2.37. Seguimiento a licencias y trámites ambientales",null,null,"1.02.1.04.39. Aporte pensionados - Fondo de Solidaridad Pensional"]
["150700","INSTITUTO CASAS FISCALES DEL EJERCITO",null,"FONDO NACIONAL DE LAS UNIVERSIDADES ESTATALES DE COLOMBIA","6075",null,null,null,null,null,null,null,null,null,null,null,null,null,null,null,null,"Comparación interlaboratorios","48",null,"1.02.3.01.08. Sanciones por desestimiento",null,null,"1.02.2.38. Tasa de inspección y vigilancia – Superintendencia Nacional de Salud",null,null,"1.02.1.04.41. Contribución cultural a la boletería de los espectáculos públicos"]
["150800","DEFENSA CIVIL COLOMBIANA, GUILLERMO LEÓN VALENCIA",null,"FONDO DE ENERGÍAS NO CONVENCIONALES Y GESTIÓN EFICIENTE DE LA ENERGÍA","6077",null,null,null,null,null,null,null,null,null,null,null,null,null,null,null,null,"Comercialización de materiales de referencia","49",null,null,null,null,"1.02.2.39. Expedición de tarjetas profesionales",null,null,"1.02.1.04.42. Recursos por la explotación de juegos de suerte y azar – Fondo de Investigación en Salud"]
["151000","CLUB MILITAR DE OFICIALES",null,"FONDO DE RESTITUCION DE TIERRAS DESPOJADAS","6078",null,null,null,null,null,null,null,null,null,null,null,null,null,null,null,null,"Explotación de las concesiones de televisión","51",null,"DERECHOS ECONÓMICOS POR USO DE RECURSOS NATURALES- EP",null,null,"1.02.2.40. Derechos de registro",null,null,"1.02.1.04.43. Contribución - Fondo Industria de la Construcción (FIC)"]
["151100","CAJA DE SUELDOS DE RETIRO DE LA POLICIA NACIONAL",null,"FONDO DE LA DIRECCIÓN DE CONSULTA PREVIA",6079,null,null,null,null,null,null,null,null,null,null,null,null,null,null,null,null,"Derechos de aeródromo","53",null,"1.02.4.01. Derecho económico por uso del subsuelo",null,null,"1.02.2.42. Permiso para el uso del espectro radioeléctrico",null,null,"1.02.1.04.44. Contribución SOAT - Fondo Nacional de Seguridad Vial"]
["151201","FONDO ROTATORIO DE LA POLICIA - GESTION GENERAL",null,"FONDO PARA EL FORTALECIMIENTO DE LA INSPECCIÓN, VIGILANCIA Y CONTROL DEL TRABAJO Y LA SEGURIDAD SOCIAL - FIVICOT",6080,null,null,null,null,null,null,null,null,null,null,null,null,null,null,null,null,"Tasas aeroportuarias","54",null,"1.02.4.02. Concesiones mineras",null,null,"1.02.2.43. Permiso por tenencia y porte de armas",null,null,"1.02.1.04.46. Contribución - Fondo de Seguridad y Convivencia"]
["151600","SUPERINTENDENCIA DE VIGILANCIA Y SEGURIDAD PRIVADA",null,"FONDO DE REPARACIÓN DE VICTIMAS",321,null,null,null,null,null,null,null,null,null,null,null,null,null,null,null,null,"Permiso para la toma de fotografías y videos en parque naturales",55,null,"1.02.4.03. Contraprestaciones portuarias",null,null,"1.02.2.44. Derecho de ingreso áreas protegidas",null,null,"1.02.1.04.49 Contribución Fondo de Curadores Urbanos"]
["151900","HOSPITAL MILITAR",null,"FONDO EMPRENDER",322,null,null,null,null,null,null,null,null,null,null,null,null,null,null,null,null,"Tasa por el uso de agua",56,null,"1.02.4.05. Concesiones parques naturales",null,null,"1.02.2.45. Servicios de asistencia técnica en materia metrológica",null,null,"1.02.1.04.50 Contribución Fondo Notarias Decreto 1672 de 1997"]
["152000","AGENCIA LOGISTICA DE LAS FUERZAS MILITARES",null,"FONDO NACIONAL DE SEGURIDAD VIAL",323,null,null,null,null,null,null,null,null,null,null,null,null,null,null,null,null,"Evaluación de calidad de las estadísticas ",57,null,null,null,null,"1.02.2.46. Capacitación en metrología",null,null,"1.02.1.04.51 Contribución Servicios Notariales "]
["160101","POLICIA NACIONAL - GESTION GENERAL",null,"FONDO FISCALIZACIÓN MINERA",324,null,null,null,null,null,null,null,null,null,null,null,null,null,null,null,null,"Acreditación de laboratorios ambientales",61,null,null,null,null,"1.02.2.47. Calibración y medición metrológica",null,null,"1.02.1.04.52 De Indumil"]
["160102","POLICIA NACIONAL - SALUD",null,"FONDO VIVIENDA - SENA",325,null,null,null,null,null,null,null,null,null,null,null,null,null,null,null,null,"Derecho por el registro de marcas ",62,null,"TRANSFERENCIAS CORRIENTES- EP",null,null,"1.02.2.48. Comparación interlaboratorios"]
["170101","MINAGRICULTURA - GESTION GENERAL",null,"FONDO VIVIENDA - SUPERINTENDENCIA NOTARIADO Y REGISTRO",326,null,null,null,null,null,null,null,null,null,null,null,null,null,null,null,null,"Expedición de antecedentes disciplinarios profesionales ","63",null,"1.02.6.01. Indemnizaciones relacionadas con seguros no de vida",null,null,"1.02.2.49. Comercialización de materiales de referencia"]
["170106","UNIDAD DE PLANIFICACIÓN DE TIERRAS RURALES, ADECUACIÓN DE TIERRAS Y USOS AGROPECUARIOS - UPRA",null,"FONDO INDUSTRIA DE LA CONSTRUCCION FIC",327,null,null,null,null,null,null,null,null,null,null,null,null,null,null,null,null,"Certificados catastrales ","65",null,"1.02.6.02. Sentencias y conciliaciones",null,null,"1.02.2.51. Explotación de las concesiones de televisión"]
["170200","INSTITUTO COLOMBIANO AGROPECUARIO (ICA)",null,"FONDO NOTARIAS DECRETO 1672 DE 1997",328,null,null,null,null,null,null,null,null,null,null,null,null,null,null,null,null,"Tasa por el uso de la insfraestructura de transporte","66",null,"1.02.6.04 Devolución IVA - Instituciones de educación superior",null,null,"1.02.2.53. Derechos de aeródromo"]
["171500","AUTORIDAD NACIONAL DE ACUICULTURA Y PESCA - AUNAP",null,"FONDOS INPEC",329,null,null,null,null,null,null,null,null,null,null,null,null,null,null,null,null,"Por uso de laboratorios y espacioes físicos ","67",null,"1.02.6.05. Transferencias de otras unidades de gobierno",null,null,"1.02.2.54. Tasas aeroportuarias "]
["171600","UNIDAD ADMINISTRATIVA ESPECIAL DE GESTIÓN DE RESTITUCIÓN DE TIERRAS DESPOJADAS",null,"FONDO CONTRA LA EXPLOTACIÓN SEXUAL DE MENORES","3210",null,null,null,null,null,null,null,null,null,null,null,null,null,null,null,null,"Expedición de permisos para ejercer actividades pesqueras","72",null,"1.02.6.07. Recursos por bienes mostrencos y vocaciones hereditarias",null,null,"1.02.2.55. Permiso para la toma de fotografías y videos en parque naturales"]
["171700","AGENCIA NACIONAL DE TIERRAS - ANT",null,"FONDO DE CURADORES URBANOS","3211",null,null,null,null,null,null,null,null,null,null,null,null,null,null,null,null,"Expedición de patentes de pesca","73",null,"1.02.6.09. Compensación UPC – SSS",null,null,"1.02.2.56. Tasa por el uso de agua"]
["171800","AGENCIA DE DESARROLLO RURAL - ADR",null,"FONDO PARA LA ADMINISTRACIÓN DE BIENES DE LA FISCALIA","3212",null,null,null,null,null,null,null,null,null,null,null,null,null,null,null,null,"Contraprestación para la provisión de redes y servicios ","74",null,"1.02.6.11. Mercancías Aprehendidas, Decomisadas o Abandonadas ",null,null,"1.02.2.57. Evaluación de calidad de las estadísticas "]
["190101","MINISTERIO DE SALUD Y PROTECCION SOCIAL - GESTIÓN GENERAL",null,"FONDO DE PRESTACIONES SOCIALES DEL MAGISTERIO",501,null,null,null,null,null,null,null,null,null,null,null,null,null,null,null,null,null,null,null,null,null,null,"1.02.2.61. Acreditación de laboratorios ambientales"]
["190106","MINISTERIO  DE SALUD Y PROTECCION SOCIAL - UNIDAD ADMINISTRATIVA ESPECIAL FONDO NACIONAL DE ESTUPEFACIENTES",null,"CONTRIBUCIÓN ESPECTÁCULOS PÚBLICOS (ART. 7 LEY 1493 DE 2011)",502,null,null,null,null,null,null,null,null,null,null,null,null,null,null,null,null,null,null,null,"CONTRIBUCIONES SOCIALES -FE",null,null,"1.02.2.62. Derecho por el registro de marcas "]
["190109","MINISTERIO  DE SALUD Y PROTECCION SOCIAL - INSTITUTO NACIONAL DE CANCEROLOGIA ",null,null,null,null,null,null,null,null,null,null,null,null,null,null,null,null,null,null,null,"TASAS Y DERECHOS ADMINISTRATIVOS - FE","CÓD",null,"1.02.1.01.01. Salud",null,null,"1.02.2.63. Expedición de antecedentes disciplinarios profesionales "]
["190110","MINISTERIO  DE SALUD Y PROTECCION SOCIAL - SANATORIO DE CONTRATACION",null,null,null,null,null,null,null,null,null,null,null,null,null,null,null,null,null,null,null,"Certificaciones y constancias ",15,null,"1.02.1.01.02. Pensión",null,null,"1.02.2.65. Certificados catastrales "]
["190111","MINISTERIO  DE SALUD Y PROTECCION SOCIAL - SANATORIO DE AGUA DE DIOS",null,null,null,null,null,null,null,null,null,null,null,null,null,null,null,null,null,null,null,"Expedición de tarjetas profesionales ","39",null,null,null,null,"1.02.2.66. Tasa por el uso de la insfraestructura de transporte"]
["190112","MINISTERIO  DE SALUD Y PROTECCION SOCIAL - CENTRO DERMATOLOGICO FEDERICO LLERAS ACOSTA",null,null,null,null,null,null,null,null,null,null,null,null,null,null,null,null,null,null,null,"Derechos de registro ","40",null,null,null,null,"1.02.2.67. Por uso de laboratorios y espacioes físicos "]
["190300","INSTITUTO NACIONAL DE SALUD (INS)",null,null,null,null,null,null,null,null,null,null,null,null,null,null,null,null,null,null,null,"Autorización para el manejo de sustancias químicas controladas","41",null,"CONTRIBUCIONES ASOCIADAS A NÓMINA -FE",null,null,"1.02.2.72. Expedición de permisos para ejercer actividades pesqueras"]
["191000","SUPERINTENDENCIA NACIONAL DE SALUD",null,null,null,null,null,null,null,null,null,null,null,null,null,null,null,null,null,null,null,"Permiso por tenencia y porte de armas ","43",null,"1.02.1.02.04. Escuelas industriales e institutos técnicos",null,null,"1.02.2.73. Expedición de patentes de pesca"]
["191200","INSTITUTO NACIONAL DE VIGILANCIA DE MEDICAMENTOS Y ALIMENTOS - INVIMA",null,null,null,null,null,null,null,null,null,null,null,null,null,null,null,null,null,null,null,"Tasa para la sostenibilidad del RUNT","50",null,"1.02.1.02.05. Aportes de cesantías",null,null,"1.02.2.74. Contraprestación para la provisión de redes y servicios "]
["191301","FONDO DE PREVISION SOCIAL DEL CONGRESO - PENSIONES",null,null,null,null,null,null,null,null,null,null,null,null,null,null,null,null,null,null,null,"Fiscalización y seguimiento a títulos mineros","52"]
["191302","FONDO DE PREVISION SOCIAL DEL CONGRESO - CESANTIAS Y VIVIENDA",null,null,null,null,null,null,null,null,null,null,null,null,null,null,null,null,null,null,null,"Expedición de licencias de fabricación de derivados de cannabis ","59"]
["191401","FONDO PASIVO SOCIAL DE FERROCARRILES NACIONALES DE COLOMBIA - SALUD ",null,null,null,null,null,null,null,null,null,null,null,null,null,null,null,null,null,null,null,"Seguimiento a las licencias de fabricación de derivados de cannabis ","60"]
["191402","FONDO PASIVO SOCIAL DE FERROCARRILES NACIONALES DE COLOMBIA -PENSIONES",null,null,null,null,null,null,null,null,null,null,null,null,null,null,null,null,null,null,null,"Derechos marítimos ","68"]
["210101","MINISTERIO DE MINAS Y ENERGIA - GESTION GENERAL",null,null,null,null,null,null,null,null,null,null,null,null,null,null,null,null,null,null,null,"Tasas Servicio de seguridad marítima ","69"]
["210113","MINISTERIO DE MINAS Y ENERGIA - COMISION DE REGULACION DE ENERGIA Y GAS - CREG",null,null,null,null,null,null,null,null,null,null,null,null,null,null,null,null,null,null,null,"Expedición de tarjetas de reservista y provisional","70"]
["210300","SERVICIO GEOLÓGICO COLOMBIANO",null,null,null,null,null,null,null,null,null,null,null,null,null,null,null,null,null,null,null,"Expedición de cédulas militares y policiales ","71"]
["210900","UNIDAD DE PLANEACION MINERO ENERGETICA - UPME"]
["211000","INSTITUTO DE PLANIFICACION Y PROMOCION DE SOLUCIONES  ENERGETICAS PARA LAS ZONAS NO INTERCONECTADAS -IPSE-"]
["211100","AGENCIA NACIONAL DE HIDROCARBUROS - ANH"]
["211200","AGENCIA NACIONAL DE MINERÍA - ANM"]
["220101","MINISTERIO EDUCACION NACIONAL - GESTION GENERAL"]
["220900","INSTITUTO NACIONAL PARA SORDOS (INSOR)"]
["221000","INSTITUTO NACIONAL PARA CIEGOS (INCI)"]
["223400","ESCUELA TECNOLOGICA INSTITUTO TECNICO CENTRAL"]
["223800","INSTITUTO NACIONAL DE FORMACION TECNICA PROFESIONAL DE SAN ANDRES Y PROVIDENCIA"]
["223900","INSTITUTO NACIONAL DE FORMACION TECNICA PROFESIONAL DE SAN JUAN DEL CESAR"]
["224100","INSTITUTO TOLIMENSE DE FORMACION TECNICA PROFESIONAL"]
["224200","INSTITUTO TECNICO NACIONAL DE COMERCIO SIMON RODRIGUEZ DE CALI"]
[224601,"UNIDAD ADMINISTRATIVA ESPECIAL ALIMENTACIÓN ESCOLAR"]
["230101","MINISTERIO DE TECNOLOGIAS DE LA INFORMACION Y LAS COMUNICACIONES - GESTION GENERAL"]
["230103","MINISTERIO DE TECNOLOGIAS DE LA INFORMACION Y LAS COMUNICACIONES - UNIDAD ADMINISTRATIVA ESPECIAL COMISION DE REGULACION DE COMUNICACIONES"]
["230600","FONDO ÚNICO DE TECNOLOGIAS DE LA INFORMACION Y LAS COMUNICACIONES"]
[230800,"UNIDAD ADMINISTRATIVA ESPECIAL COMISION DE REGULACION DE COMUNICACIONES"]
["230900","AGENCIA NACIONAL DEL ESPECTRO - ANE"]
["231000","AUTORIDAD NACIONAL DE TELEVISION ANTV EN LIQUIDACIÓN"]
["231100","COMPUTADORES PARA EDUCAR"]
[231200,"CORPORACIÓN AGENCIA NACIONAL DE GOBIERNO DIGITAL - AND"]
["240101","MINISTERIO DE TRANSPORTE - GESTION GENERAL"]
["240106","MINISTERIO DE TRANSPORTE - CORPORACION AUTONOMA REGIONAL DEL RIO GRANDE DE LA MAGDALENA - CORMAGDALENA"]
["240200","INSTITUTO NACIONAL DE VIAS"]
["241200","UNIDAD ADMINISTRATIVA ESPECIAL DE LA AERONAUTICA CIVIL"]
["241300","AGENCIA NACIONAL DE INFRAESTRUCTURA"]
["241400","UNIDAD DE PLANEACION DEL SECTOR DE INFRAESTRUCTURA DE TRANSPORTE"]
["241500","COMISION DE REGULACION DE INFRAESTRUCTURA Y TRANSPORTE"]
["241600","AGENCIA NACIONAL DE SEGURIDAD VIAL"]
["241700","SUPERINTENDENCIA DE PUERTOS Y TRANSPORTE"]
["250101","PROCURADURIA GENERAL DE LA NACIÓN - GESTION GENERAL"]
["250105","MINISTERIO PUBLICO - INSTITUTO DE ESTUDIOS DEL MINISTERIO PUBLICO"]
["250200","DEFENSORIA DEL PUEBLO"]
["260101","CONTRALORIA GENERAL DE LA  REPUBLICA - GESTION GENERAL"]
["260200","FONDO DE BIENESTAR SOCIAL DE LA CONTRALORIA GENERAL DE LA REPUBLICA"]
["270102","RAMA JUDICIAL - CONSEJO SUPERIOR DE LA JUDICATURA"]
["270103","RAMA JUDICIAL - CORTE SUPREMA DE JUSTICIA"]
["270104","RAMA JUDICIAL - CONSEJO DE ESTADO"]
["270105","RAMA JUDICIAL - CORTE CONSTITUCIONAL"]
["270108","RAMA JUDICIAL - TRIBUNALES Y JUZGADOS"]
["280101","REGISTRADURIA NACIONAL DEL ESTADO CIVIL - GESTION GENERAL"]
["280102","REGISTRADURIA NACIONAL DEL ESTADO CIVIL - CONSEJO NACIONAL ELECTORAL"]
["280200","FONDO ROTATORIO DE LA REGISTRADURIA"]
["280300","FONDO SOCIAL DE VIVIENDA DE LA REGISTRADURIA NACIONAL DEL ESTADO CIVIL"]
["290101","FISCALIA GENERAL DE LA NACION - GESTION GENERAL"]
["290200","INSTITUTO NACIONAL DE MEDICINA LEGAL Y CIENCIAS FORENSES"]
[290400,"FONDO ESPECIAL PARA LA ADMINISTRACION DE BIENES DE LA FISCALIA GENERAL DE LA NACION"]
["320101","MINISTERIO DE AMBIENTE Y DESARROLLO SOSTENIBLE - GESTION GENERAL"]
["320102","PARQUES NACIONALES NATURALES DE COLOMBIA"]
["320104","AUTORIDAD NACIONAL DE LICENCIAS AMBIENTALES ANLA"]
["320200","INSTITUTO DE HIDROLOGIA, METEOROLOGIA Y ESTUDIOS AMBIENTALES- IDEAM"]
["320401","FONAM - GESTION GENERAL"]
["320800","CORPORACION AUTONOMA REGIONAL DE LOS VALLES DEL SINU Y SAN JORGE (CVS)"]
["320900","CORPORACION AUTONOMA REGIONAL DEL QUINDIO (CRQ)"]
["321000","CORPORACION PARA EL DESARROLLO SOSTENIBLE DEL URABA - CORPOURABA"]
["321100","CORPORACION AUTONOMA REGIONAL DE CALDAS (CORPOCALDAS)"]
["321200","CORPORACION AUTONOMA REGIONAL PARA EL DESARROLLO SOSTENIBLE DEL CHOCO - CODECHOCO"]
["321300","CORPORACION AUTONOMA REGIONAL PARA LA DEFENSA DE LA MESETA DE BUCARAMANGA CDMB "]
["321400","CORPORACION AUTONOMA REGIONAL DEL TOLIMA (CORTOLIMA)"]
["321500","CORPORACION AUTONOMA REGIONAL DE RISARALDA (CARDER)"]
["321600","CORPORACION AUTONOMA REGIONAL DE NARINO (CORPONARINO)"]
["321700","CORPORACION AUTONOMA REGIONAL DE LA FRONTERA NORORIENTAL (CORPONOR)"]
["321800","CORPORACION AUTONOMA REGIONAL DE LA GUAJIRA (CORPOGUAJIRA)"]
["321900","CORPORACION AUTONOMA REGIONAL DEL CESAR (CORPOCESAR)"]
["322100","CORPORACION AUTONOMA REGIONAL DEL CAUCA (CRC)"]
["322200","CORPORACION AUTONOMA REGIONAL DEL MAGDALENA (CORPAMAG)"]
["322300","CORPORACION PARA EL DESARROLLO SOSTENIBLE DEL SUR DE LA AMAZONIA - CORPOAMAZONIA"]
["322400","CORPORACION  PARA EL DESARROLLO SOSTENIBLE DEL NORTE Y ORIENTE DE LA AMAZONIA - CDA"]
["322600","CORPORACION PARA EL DESARROLLO SOSTENIBLE DEL ARCHIPIELAGO DE SAN ANDRES, PROVIDENCIA Y SANTA CATALINA - CORALINA"]
["322700","CORPORACION PARA EL DESARROLLO SOSTENIBLE DEL AREA DE MANEJO ESPECIAL LA MACARENA - CORMACARENA"]
["322800","CORPORACION  PARA EL DESARROLLO SOSTENIBLE DE LA MOJANA Y EL SAN JORGE - CORPOMOJANA"]
["322900","CORPORACION AUTONOMA REGIONAL DE LA ORINOQUIA - CORPORINOQUIA"]
["323000","CORPORACION AUTONOMA REGIONAL DE SUCRE - CARSUCRE"]
["323100","CORPORACION AUTONOMA REGIONAL DEL ALTO MAGDALENA - CAM"]
["323200","CORPORACION AUTONOMA REGIONAL DEL CENTRO DE ANTIOQUIA - CORANTIOQUIA"]
["323300","CORPORACION AUTONOMA REGIONAL DEL ATLANTICO - CRA"]
["323400","CORPORACION AUTONOMA REGIONAL DE SANTANDER - CAS"]
["323500","CORPORACION AUTONOMA REGIONAL DE BOYACA - CORPOBOYACA"]
["323600","CORPORACION AUTONOMA REGIONAL DE CHIVOR - CORPOCHIVOR"]
["323700","CORPORACION AUTONOMA REGIONAL DEL GUAVIO - CORPOGUAVIO"]
["323800","CORPORACION AUTONOMA REGIONAL DEL CANAL DEL DIQUE - CARDIQUE"]
["323900","CORPORACION AUTONOMA REGIONAL DEL SUR DE BOLIVAR - CSB"]
["330101","MINISTERIO DE CULTURA - GESTION GENERAL"]
["330400","ARCHIVO GENERAL DE LA NACION"]
["330500","INSTITUTO COLOMBIANO DE ANTROPOLOGIA E HISTORIA"]
["330700","INSTITUTO CARO Y CUERVO"]
["340101","AUDITORIA GENERAL DE LA REPUBLICA - GESTION GENERAL"]
["350101","MINCOMERCIO INDUSTRIA TURISMO - GESTION GENERAL"]
["350102","MINCOMERCIO INDUSTRIA TURISMO - DIRECCION GENERAL DE COMERCIO EXTERIOR"]
["350104","MINCOMERCIO INDUSTRIA TURISMO - ARTESANIAS DE COLOMBIA S.A."]
["350200","SUPERINTENDENCIA DE SOCIEDADES"]
["350300","SUPERINTENDENCIA DE INDUSTRIA Y COMERCIO"]
["350400","UNIDAD ADMINISTRATIVA ESPECIAL JUNTA CENTRAL CONTADORES"]
["350500","INSTITUTO NACIONAL DE METROLOGÍA - INM"]
["360101","MINISTERIO DEL TRABAJO - GESTION GENERAL"]
["360107","MINISTERIO DEL TRABAJO - SUPERINTENDENCIA DE SUBSIDIO FAMILIAR"]
["360200","SERVICIO NACIONAL DE APRENDIZAJE - SENA"]
["361200","UNIDAD ADMINISTRATIVA ESPECIAL DE ORGANIZACIONES SOLIDARIAS"]
["361300","UNIDAD ADMINISTRATIVA ESPECIAL DEL SERVICIO PUBLICO DE EMPLEO"]
["370101","MINISTERIO DEL INTERIOR - GESTIÓN GENERAL"]
[370102,"DIRECCIÓN DE LA AUTORIDAD NACIONAL DE CONSULTA PREVIA"]
["370300","DIRECCION NACIONAL DEL DERECHO DE AUTOR"]
["370400","CORPORACION NACIONAL PARA LA RECONSTRUCCION DE LA CUENCA DEL RIO PAEZ Y ZONAS ALEDANAS NASA KI WE"]
["370800","UNIDAD NACIONAL DE PROTECCION - UNP"]
["370900","DIRECCION NACIONAL DE BOMBEROS"]
["380100","COMISION NACIONAL DEL SERVICIO CIVIL"]
[390101,"MINISTERIO DE CIENCIA, TECNOLOGÍA E INNOVACIÓN - GESTIÓN GENERAL"]
["400101","MINISTERIO DE VIVIENDA, CIUDAD Y TERRITORIO - GESTIÓN GENERAL"]
["400102","COMISION DE REGULACION DE AGUA POTABLE Y SANEAMIENTO BÁSICO - CRA"]
["400200","FONDO NACIONAL DE VIVIENDA - FONVIVIENDA"]
["410101","DEPARTAMENTO ADMINISTRATIVO PARA LA PROSPERIDAD SOCIAL - GESTIÓN GENERAL"]
["410400","UNIDAD DE ATENCIÓN Y REPARACIÓN INTEGRAL A LAS VICTIMAS"]
["410500","CENTRO DE MEMORIA HISTÓRICA"]
["410600","INSTITUTO COLOMBIANO DE BIENESTAR FAMILIAR - ICBF"]
["420101","DEPARTAMENTO ADMINISTRATIVO DIRECCIÓN NACIONAL DE INTELIGENCIA - GESTIÓN GENERAL"]
["430101","MINISTERIO DEL DEPORTE - GESTIÓN GENERAL"]
[440101,"JURISDICCIÓN ESPECIAL PARA LA PAZ"]